Cogmind - Beta 16 @@@ ROGUE MODE // 2026.02.03 @ 02:41:40 Player: parasect Result: Escaped! Performance ------------- Evolutions (9) 4500 Regions Visited (30) 6000 Robots Destroyed (404) 2020 Value Destroyed (16429) 16429 Prototype IDs (65) 1300 Alien Tech Used (1) 200 Bonus (13628) 13628 TOTAL SCORE: 44077 Bonus ------- High Alert Combat Kills 2331 Follower Combat Kills 2740 Met Data Miner 300 Met Zhirov 300 Met Warlord at Base 500 MAIN.C Attacked Warlord 500 Warlord Defense Kills 2250 Built Enhanced Grunts 300 A7 Reached Mainframe 300 Met R17 at Cetus 500 Met R17 at Research 2000 Met Warlord at Research 2000 Win 3000 Friendly Fire -3393 Cogmind --------- Core Integrity 1227/1600 Matter 712/800 Energy 864/975 System Corruption 38% Temperature Cool (10) Movement Treading (160) Location To Epsilon Eridani Parts ------- > --- POWER (3) -------- Compact Particle Reactor Light Quantum Reactor Reinforced Quantum Reactor > --- PROPULSION (5) --- Enhanced Armored Medium Treads Enhanced Armored Medium Treads Enhanced Armored Medium Treads Centrium Heavy Treads > --- UTILITY (12) ----- High-capacity Storage Unit Advanced Energy Well Experimental Matter Compressor Advanced Weight Redist. System Advanced Targeting Computer Advanced Targeting Computer Improved Armor Integrity Analyzer Advanced Weapon Cycler Advanced Transmission Jammer Improved Core Shielding Medium Regenerative Plating Long-range Tractor Beam > --- WEAPON (5) ------- Heavy Machine Gun Enhanced Hardcell Cannon Enhanced Hardcell Cannon Tesla Bomb Launcher > --- INVENTORY (20) --- Armored Heavy Treads Advanced Heavy Siege Treads Biometal Leg Advanced Heat Sink Layered Heavy Armor Plating Transdimensional Reconstructor Peak State ------------ > --- POWER ------------ Quantum Reactor Improved Quantum Reactor Improved Quantum Reactor > --- PROPULSION ------- Enhanced Armored Medium Treads Enhanced Armored Medium Treads Enhanced Armored Medium Treads Advanced Heavy Treads > --- UTILITY ---------- Advanced Heat Sink Advanced Heat Sink High-capacity Storage Unit Experimental Signal Interpreter Advanced Targeting Computer Core Analyzer Improved Armor Integrity Analyzer Advanced Weapon Cycler Advanced Transmission Jammer Medium Regenerative Plating Advanced Force Field Long-range Tractor Beam > --- WEAPON ----------- KE Penetrator Railgun Railgun Enhanced Hardcell Cannon Compact Linear Accelerator > --- INVENTORY -------- Compact Particle Reactor Quantum Reactor Medium Treads Enhanced Armored Medium Treads Enhanced Armored Medium Treads Centrium Heavy Treads Advanced Heavy Siege Treads Advanced Energy Well Experimental Matter Compressor Advanced Weight Redist. System Experimental Sensor Array Long-range Tractor Beam Transdimensional Reconstructor Railgun Advanced KE Penetrator Advanced KE Penetrator Tesla Bomb Launcher Advanced Remote Datajack [Rating: 193] Favorites ----------- Power Compact Particle Reactor Engine Improved Deuterium Engine Power Core Light Nuclear Core Reactor Compact Particle Reactor Propulsion Armored Treads Treads Armored Treads Leg Aluminum Leg Utility High-capacity Storage Unit Device Experimental Sensor Array Storage High-capacity Storage Unit Processor Advanced Targeting Computer Hackware Advanced System Shield Protection Medium Regenerative Plating Weapon Railgun Energy Gun Advanced Beam Rifle Energy Cannon Advanced Beam Cannon Ballistic Gun Railgun Ballistic Cannon Compact Linear Accelerator Launcher Micro-nuke Launcher Special Weapon Improved Remote Datajack Impact Weapon Power Maul Slashing Weapon Great Axe Piercing Weapon Plasma Lance Special Melee Weapon Datajack Build | -11 -10 -10 -9 -9 -8 -7 -7 -7 -7 -6 -6 -6 -6 -6 -6 -5 -5 -5 -5 -4 -4 -4 -4 -4 -4 -4 -3 -3 -2 -1 ------- Run | Yrd Mat Min Mat Min Mat Fac Low Low Dat Pro Fac Ext Cet Arc Hub Fac Upp Upp Zhi Pro Fac Was Fac Upp Upp War Pro Res Res Acc Slots Evolved 18 | . . . 2 . 2 2 . . . . 2 . . . . 2 . . . . 2 . . . . . . 2 2 2 Power 2 | . . . . . . . . . . . 1 . . . . . . . . . . . . . . . . 1 . . Propulsion 3 | . . . 1 . . . . . . . 1 . . . . . . . . . . . . . . . . . 1 . Utility 10 | . . . 1 . 1 2 . . . . . . . . . 2 . . . . 2 . . . . . . 1 . 1 Weapon 3 | . . . . . 1 . . . . . . . . . . . . . . . . . . . . . . . 1 1 Parts Attached 297 | 1 15 3 28 8 45 22 1 1 1 3 13 17 20 . 11 5 1 . 2 1 5 . 18 . 3 11 3 13 20 26 Power 39 | . 2 . 4 2 5 1 . . . 1 3 4 4 . . . . . 1 . . . . . . 1 . 3 3 5 Engine 19 | . 2 . 4 1 3 1 . . . 1 2 4 1 . . . . . . . . . . . . . . . . . Core 5 | . . . . 1 2 . . . . . 1 . . . . . . . . . . . . . . . . 1 . . Reactor 15 | . . . . . . . . . . . . . 3 . . . . . 1 . . . . . . 1 . 2 3 5 Propulsion 67 | . 6 . 4 1 20 3 . 1 . . 2 6 8 . 2 . . . . . . . 1 . . 3 . 4 3 3 Treads 65 | . 4 . 4 1 20 3 . 1 . . 2 6 8 . 2 . . . . . . . 1 . . 3 . 4 3 3 Leg 2 | . 2 . . . . . . . . . . . . . . . . . . . . . . . . . . . . . Wheel . | . . . . . . . . . . . . . . . . . . . . . . . . . . . . . . . Hover . | . . . . . . . . . . . . . . . . . . . . . . . . . . . . . . . Flight . | . . . . . . . . . . . . . . . . . . . . . . . . . . . . . . . Utility 109 | 1 3 . 9 4 11 11 1 . 1 2 6 3 6 . 4 2 1 . . 1 3 . 12 . 2 5 1 3 6 11 Device 55 | 1 . . 7 2 3 4 . . . 2 2 1 . . 2 2 1 . . . 1 . 9 . 2 3 1 2 4 6 Storage 7 | . 2 . . . 2 1 . . . . . . . . 1 . . . . . . . . . . . . . 1 . Processor 15 | . . . . . 3 1 . . . . 1 . 1 . 1 . . . . 1 1 . 1 . . 1 . 1 1 2 Hackware 6 | . . . . . . . . . . . 2 . . . . . . . . . 1 . 2 . . . . . . 1 Protection 26 | . 1 . 2 2 3 5 1 . 1 . 1 2 5 . . . . . . . . . . . . 1 . . . 2 Artifact . | . . . . . . . . . . . . . . . . . . . . . . . . . . . . . . . Weapon 82 | . 4 3 11 1 9 7 . . . . 2 4 2 . 5 3 . . 1 . 2 . 5 . 1 2 2 3 8 7 Energy Gun 13 | . 1 . 2 . 3 . . . . . . . 1 . 1 . . . . . 2 . . . . 1 . 1 1 . Energy Cannon 4 | . . . 2 . . 1 . . . . . . . . . 1 . . . . . . . . . . . . . . Ballistic Gun 41 | . 2 3 3 . 5 3 . . . . 2 3 1 . 4 1 . . . . . . 3 . 1 . 1 1 4 4 Ballistic Cannon 9 | . . . . . 1 1 . . . . . 1 . . . . . . . . . . 1 . . . 1 . 2 2 Launcher 6 | . . . 2 . . 1 . . . . . . . . . 1 . . . . . . 1 . . . . . 1 . Special Weapon 4 | . . . 1 . . . . . . . . . . . . . . . 1 . . . . . . 1 . . . 1 Impact Weapon 1 | . . . . 1 . . . . . . . . . . . . . . . . . . . . . . . . . . Slashing Weapon 1 | . . . . . . 1 . . . . . . . . . . . . . . . . . . . . . . . . Piercing Weapon 1 | . . . . . . . . . . . . . . . . . . . . . . . . . . . . 1 . . Special Melee Weapon 2 | . 1 . 1 . . . . . . . . . . . . . . . . . . . . . . . . . . . Unidentified Prototypes 32 | . . . 2 1 . 1 . . . . . . 6 . 2 2 . . 2 . . . 2 . . 5 . 3 6 . Corrupted Parts 5 | . . . . . . . . . . . . . . . 3 . . . . . . . . . . . . . . 2 System Corruption 28 | . . . . . . . . . . . . . . . 17 . . . . . . . . . . . . . . 11 Parts Lost 35 | . 2 . 1 . 3 . . . . . 5 3 . . . . . . . . . . 1 . . 1 . . . 19 Power 5 | . . . . . . . . . . . 1 . . . . . . . . . . . . . . . . . . 4 Propulsion 7 | . 1 . . . 1 . . . . . 1 1 . . . . . . . . . . . . . . . . . 3 Utility 11 | . 1 . 1 . 2 . . . . . 1 . . . . . . . . . . . 1 . . 1 . . . 4 Weapon 12 | . . . . . . . . . . . 2 2 . . . . . . . . . . . . . . . . . 8 Highest Loss Streak 6 | . 1 . 1 . 1 . . . . . 4 2 . . . . . . . . . . 1 . . 1 . . . 6 To Critical Strikes . | . . . . . . . . . . . . . . . . . . . . . . . . . . . . . . . Average Backups 17 | 6 13 15 18 19 18 18 19 19 18 19 18 19 17 17 16 17 18 18 18 17 17 18 17 16 18 18 18 18 18 15 Power 1 | 1 1 1 . 1 1 1 1 1 1 1 . 1 1 1 1 1 1 1 1 1 1 1 1 1 1 1 1 1 1 1 Propulsion 4 | 4 4 5 4 5 7 5 5 5 5 5 3 4 3 3 3 3 3 3 3 3 3 3 3 3 3 3 3 3 3 3 Utility 5 | . 2 3 4 4 4 6 6 7 7 7 7 8 8 8 8 7 7 7 7 6 6 6 6 6 7 6 6 6 6 4 Weapon 5 | 1 4 5 7 6 5 6 6 6 5 6 5 4 4 5 4 5 6 6 5 5 5 6 5 4 5 6 6 5 6 4 Tool/Special . | . . . . . . . . . . . . . . . . . . . . . . . . . . . . . . . Unused Backups 75 | . 10 . 15 1 9 2 . . . 1 2 4 3 . . 7 . . 1 . 1 . 2 2 . 1 . 2 6 6 Power 4 | . 2 . . . 1 . . . . . . 1 . . . . . . . . . . . . . . . . . . Propulsion 16 | . 4 . 4 . 3 . . . . . . . . . . . . . . . 1 . . . . . . 1 . 3 Utility 27 | . 3 . 2 . 3 1 . . . 1 1 2 3 . . 4 . . . . . . 2 . . 1 . 1 2 1 Weapon 23 | . 1 . 8 1 2 1 . . . . . 1 . . . 3 . . 1 . . . . . . . . . 4 1 Tool/Special 5 | . . . 1 . . . . . . . 1 . . . . . . . . . . . . 2 . . . . . 1 Average Slot Usage (%) 95 | . 99 100 99 99 99 99 100 99 80 100 98 94 99 100 99 93 94 94 93 94 92 89 93 94 94 90 89 89 92 94 Engine 3 | . 14 14 11 3 6 6 7 7 7 7 12 12 7 . . . . . . . . . . . . . . . . . Reactor 5 | . . . . . . . . . . . . . 5 13 13 11 11 11 11 11 10 10 10 10 10 6 5 8 11 11 Treads 20 | . 23 28 32 33 26 23 23 22 23 23 25 25 25 26 25 17 17 17 17 17 14 15 14 15 15 15 15 14 16 15 Device 12 | . 5 . 11 11 8 9 14 15 15 14 6 1 . . 3 10 11 11 10 10 15 15 14 15 15 14 14 14 12 20 Storage 6 | . 14 14 10 11 9 7 7 7 7 7 6 6 6 6 6 5 5 5 5 5 5 5 5 5 5 5 5 4 4 4 Processor 12 | . . . . . 9 14 15 15 15 15 13 13 15 20 20 17 17 17 17 17 15 15 15 15 15 15 15 18 17 15 Hackware 4 | . . . . . . . . . . . 5 6 6 6 6 5 5 5 5 5 8 10 10 10 10 10 10 9 8 1 Protection 6 | . 8 14 10 10 8 12 7 7 7 7 6 6 10 6 1 5 5 5 5 5 5 5 5 5 5 5 5 4 4 5 Energy Gun 3 | . 5 . 10 11 8 6 7 7 1 7 3 . . 5 3 . . . . . . . 2 . . 1 . 2 . . Energy Cannon 1 | . . . 8 10 7 . . . . . . . . . . . . . . . . . . . . . . . . . Ballistic Gun 12 | . 21 28 2 . 10 13 13 14 2 14 15 18 16 13 15 16 16 16 15 15 14 10 11 10 6 9 10 5 9 13 Ballistic Cannon 1 | . . . . . . . . . . . . 1 . . . . . . . . . . . . 5 . 4 4 5 5 Peak Build Rating 193 | 7 10 10 22 30 42 54 52 53 52 52 62 61 84 83 102 113 113 113 113 113 129 119 138 137 137 141 143 161 176 193 Average Rating 95 | 6 8 10 19 22 31 50 51 51 41 50 57 55 70 82 84 109 111 112 112 112 122 119 127 136 135 137 140 152 168 182 On Entrance 81 | 6 7 10 10 21 23 37 48 49 51 48 51 56 59 79 83 102 106 108 113 108 113 119 119 132 132 136 139 140 156 176 Avg Prop Armor Cover (%) 5 | . . . . . . . . . . . 5 . . . . . . . . . . . . . . . . . . . Naked Turns . | . . . . . . . . . . . . . . . . . . . . . . . . . . . . . . . Heaviest Build 158 | 13 52 52 61 59 64 74 75 65 75 74 86 96 100 96 98 104 105 104 103 103 102 95 113 122 122 113 121 143 136 158 Greatest Support 194 | 20 40 40 60 60 67 74 74 74 68 68 90 87 120 80 80 120 120 120 120 120 120 120 130 130 130 135 135 150 185 194 Greatest Overweight (x) 2 | . 2 1 1 . 2 1 1 . 1 1 1 1 1 1 2 . . . . . . . . . . . . 1 . . Average Overweight (x) . | . . 1 . . . . . . . . . . . 1 1 . . . . . . . . . . . . . . . Largest Inventory Capacity 20 | 8 20 20 20 20 20 20 20 20 20 20 20 20 20 20 20 20 20 20 20 20 20 20 20 20 20 20 20 20 20 20 Average Capacity 19 | 8 18 20 19 20 20 20 20 20 20 20 20 20 20 20 20 20 20 20 20 20 20 20 20 20 20 20 20 20 20 20 Most Carried 20 | 6 18 18 20 20 20 20 20 20 20 20 20 20 20 20 20 20 20 20 20 20 20 20 20 20 20 20 20 20 20 20 Average Carried 19 | 6 13 15 18 19 19 19 19 20 19 19 19 19 19 20 19 19 20 20 19 19 19 20 19 18 19 20 19 19 19 18 Final Capacity 20 | 8 20 20 20 20 20 20 20 20 20 20 20 20 20 20 20 20 20 20 20 20 20 20 20 20 20 20 20 20 20 20 Final Carried 20 | 6 14 18 18 20 20 20 20 20 20 20 18 20 20 20 20 20 20 20 20 20 20 20 18 20 20 20 20 20 20 9 Class Distribution -------------------- 26% | Hacker-Skirmisher 14% | Scavenger-Tank 14% | Scavenger-Gunner 11% | Mutant 11% | Skirmisher 5% | Scavenger-Mutant 4% | Tank 3% | Hacker-Tank Dominant Class ---------------- Mutant | -10/Materials Mutant | -10/Mines Mutant | -9/Materials Scavenger-Mutant | -9/Mines Tank | -8/Materials Scavenger-Tank | -7/Factory Skirmisher | -7/Lower Caves Skirmisher | -7/Lower Caves Mutant | -7/Data Miner Skirmisher | -6/Proximity Caves Skirmisher | -6/Factory Scavenger-Gunner | -6/Extension Scavenger-Tank | -6/Cetus Commander-Gunner | -6/Archives Scavenger-Gunner | -6/Hub_04(d) Scavenger-Gunner | -5/Factory Scavenger-Gunner | -5/Upper Caves Scavenger-Tank | -5/Upper Caves Scavenger-Tank | -5/Zhirov Scavenger-Tank | -4/Proximity Caves Scavenger-Tank | -4/Factory Scavenger-Mutant | -4/Waste Hacker-Tank | -4/Factory Hacker-Skirmisher | -4/Upper Caves Hacker-Skirmisher | -4/Upper Caves Hacker-Skirmisher | -4/Warlord Hacker-Skirmisher | -3/Proximity Caves Hacker-Skirmisher | -3/Research Hacker-Skirmisher | -2/Research Scavenger-Gunner | -1/Access Resources | -11 -10 -10 -9 -9 -8 -7 -7 -7 -7 -6 -6 -6 -6 -6 -6 -5 -5 -5 -5 -4 -4 -4 -4 -4 -4 -4 -3 -3 -2 -1 ----------- Run | Yrd Mat Min Mat Min Mat Fac Low Low Dat Pro Fac Ext Cet Arc Hub Fac Upp Upp Zhi Pro Fac Was Fac Upp Upp War Pro Res Res Acc Matter Collected 20431 | 210 428 87 684 192 1628 1101 199 91 . 259 990 883 606 . 412 114 222 117 124 585 117 185 1070 330 208 776 431 821 1241 6320 Remotely 5294 | . . . . . . . . . . . . . . . . . . . . . . . 201 . . . . . . 5093 Salvage Created 18890 | 84 672 86 1619 446 2129 1441 30 . . 151 913 1167 87 . 249 114 127 17 124 168 212 339 770 125 110 947 218 388 1116 5041 Parts 813 | 5 44 11 89 22 114 77 5 . . 13 38 45 7 . 14 5 2 2 1 10 13 4 25 8 2 24 9 17 27 180 Haulers Intercepted 24 | . 2 . 4 . 6 2 . . . . . 1 . . . 1 . . . . . . 2 . . . . . 4 2 Recyclers Shooed 16 | 1 1 . 4 . 3 2 . . . . 1 2 . . . . . . . . . . . . . . . . . 2 Parts Field Recycled . | . . . . . . . . . . . . . . . . . . . . . . . . . . . . . . . Retrieved Matter . | . . . . . . . . . . . . . . . . . . . . . . . . . . . . . . . Parts Self-Destructed 51 | . . . . . . . 13 . . 7 . . . . . . 3 1 1 10 . . . 5 2 . 9 . . . Prevented . | . . . . . . . . . . . . . . . . . . . . . . . . . . . . . . . Parts Restored 1 | . . . . . . . . . . . . . . . . . . . . . . . . . . . . 1 . . Broken 1 | . . . . . . . . . . . . . . . . . . . . . . . . . . . . 1 . . Kills | -11 -10 -10 -9 -9 -8 -7 -7 -7 -7 -6 -6 -6 -6 -6 -6 -5 -5 -5 -5 -4 -4 -4 -4 -4 -4 -4 -3 -3 -2 -1 ------- Run | Yrd Mat Min Mat Min Mat Fac Low Low Dat Pro Fac Ext Cet Arc Hub Fac Upp Upp Zhi Pro Fac Was Fac Upp Upp War Pro Res Res Acc Combat Hostiles Destroyed 306 | . 17 5 27 8 32 15 3 . . 7 18 20 1 . 4 . 3 5 . 6 3 . 8 4 2 17 5 7 7 82 Guns 208 | . 17 5 15 4 22 15 . . . 4 9 9 1 . 4 . 2 . . 4 3 . 8 2 1 11 5 6 4 57 Cannons 52 | . . . 10 4 7 . . . . . . 2 . . . . . . . . . . . . 1 . . 1 3 24 AOE 46 | . . . 2 . 3 . 3 . . 3 9 9 . . . . 1 5 . 2 . . . 2 . 6 . . . 1 Classes Destroyed 23 | 2 4 . 1 1 2 3 . . . 1 2 2 . . 1 . . . . . . . . . . 2 . . 2 . Worker 9 | . . . . . . 1 . . . . . 1 . . . . . . . . 1 . . . . . . . 1 5 Builder 10 | . . . . . 3 3 . . . . . 2 . . 1 . . . . . . . . . . . . . . 1 Tunneler 5 | 1 . . 2 1 . . . . . . 1 . . . . . . . . . . . . . . . . . . . Hauler 24 | . 2 . 4 . 6 2 . . . . . 1 . . . 1 . . . . . . 2 . . . . . 4 2 Recycler 23 | 1 1 . 4 1 5 5 . . . . 2 1 . . . . . . . . . . . . . . . . 1 2 Operator 3 | . . . . . 1 . . . . . . 1 . . . . . . . . . . . . . . . 1 . . Drone 34 | . . . . . . . . . . 2 . . . . . . . . . 2 . . . . . . . . . 30 Watcher 21 | . 3 . 5 . 4 3 . . . . . 1 1 . . 1 . . . . . . . . . . . . . 3 Swarmer 61 | . 9 5 10 . 10 . 3 . . 4 . 3 . . . . 1 5 . . . . . 3 . 1 4 3 . . Saboteur 1 | . . . . . . . . . . . . . . . . . . . . . . . . . . 1 . . . . Grunt 77 | . 8 . 11 5 12 2 . . . . 4 9 . . 1 . 1 . . . . . . . . 9 . 4 4 7 Brawler 3 | . . . . . . . . . . . . 1 . . . . . . . . . . . . . 2 . . . . Duelist 5 | . . . . 1 1 . . . . . . . . . . . . . . . . . . . . 1 . . 1 1 Protector 5 | . . . . . . . . . . . 2 . . . . . . . . . . . . . . 1 . . . 2 Sentry 33 | . . . 6 2 9 3 . . . 1 . 5 . . . . 1 . . . 1 . 1 1 1 . 1 . 1 . Demolisher 1 | . . . . . . . . . . . . . . . . . . . . . . . . . . . . . 1 . Specialist 4 | . . . . . . . . . . . 2 . . . . . . . . . . . 2 . . . . . . . Hunter 26 | . . . . . . 3 . . . . 5 . . . 1 . . . . 4 . . 2 . . . . . . 11 Programmer 49 | . . . . . . 7 . . . . 5 . . . 1 . . . . . 2 . 3 . 1 . . . . 30 Heavy 1 | . . . . . . . . . . . . . . . 1 . . . . . . . . . . . . . . . Behemoth 4 | . . . . . . . . . . . . 2 . . . . . . . . . . . . . . . . . 2 Cetus Guard 1 | . . . . . . . . . . . . . 1 . . . . . . . . . . . . . . . . . Striker 2 | . . . . . . . . . . . . . . . . . . . . . . . . . . 2 . . . . Savage 1 | . . . . . . . . . . . . . . . . . . . . . . . . . . 1 . . . . Knight 1 | . . . . . . . . . . . . . . . . . . . . . . . . . . . . . 1 . Best Kill Streak 14 | 2 5 3 6 3 11 6 3 . . 4 10 14 1 . 3 1 3 5 . 2 3 . 2 3 1 8 4 3 4 5 Combat Bots Only 10 | . 5 3 4 3 8 3 3 . . 4 10 10 1 . 3 . 3 5 . 2 2 . 2 3 1 8 4 3 4 5 Max Kills in Single Turn 5 | 1 2 1 2 2 2 5 2 . . 2 2 3 1 . 2 1 1 3 . 1 1 . 1 3 1 2 2 1 1 2 Gunslinging 1 | . 1 . . . . . . . . . . . . . . . . . . . . . . . . . 1 . . . Exploded 3 | . . . 2 . 2 . 2 . . 2 2 2 . . . . 1 3 . 1 . . . 2 . 2 . . . 1 Melee . | . . . . . . . . . . . . . . . . . . . . . . . . . . . . . . . Uniques/NPCs Destroyed 1 | . . . . . . . . . . . . . 1 . . . . . . . . . . . . . . . . . A7 (-6/Cetus) Combat | -11 -10 -10 -9 -9 -8 -7 -7 -7 -7 -6 -6 -6 -6 -6 -6 -5 -5 -5 -5 -4 -4 -4 -4 -4 -4 -4 -3 -3 -2 -1 -------- Run | Yrd Mat Min Mat Min Mat Fac Low Low Dat Pro Fac Ext Cet Arc Hub Fac Upp Upp Zhi Pro Fac Was Fac Upp Upp War Pro Res Res Acc Hostile Shots Fired 1822 | . 116 24 104 24 157 135 1 . . 39 124 141 20 . 22 . 14 3 . 50 22 . 85 2 10 101 45 17 30 536 Missed 447 | . 26 5 27 5 41 54 . . . 10 34 42 7 . 4 . 5 1 . 14 7 . 21 . 4 32 5 5 5 93 Hits 1375 | . 90 19 77 19 116 81 1 . . 29 90 99 13 . 18 . 9 2 . 36 15 . 64 2 6 69 40 12 25 443 Melee 7 | . . . . 7 . . . . . . . . . . . . . . . . . . . . . . . . . . Projectile 1368 | . 90 19 77 12 116 81 1 . . 29 90 99 13 . 18 . 9 2 . 36 15 . 64 2 6 69 40 12 25 443 AOE 6 | . . . . . . . . . . . . . . . . . . . . . . . 1 . . . . . . 5 Critical Strikes 123 | . 2 1 3 2 8 2 . . . . 3 2 2 . . . . . . . 1 . 5 1 . 1 . . 1 89 Actively Blocked 2 | . . . . . . . . . . . . . . . . . . . . . . . . . . . . . . 2 Part Disruptions 8 | . . . . . . 1 . . . . 2 . . . . . . . . . . . 4 . . . . . . 1 Damage Taken 19610 | . 839 161 776 375 1521 1005 18 . . 294 1312 1280 269 . 414 . 149 21 . 488 251 . 1364 23 100 1025 507 391 406 6621 Core 1620 | . 144 17 78 41 177 121 . . . 23 104 112 40 . 71 . 40 . . 18 16 . 99 . 15 97 22 12 . 373 Absorbed by Shields 5736 | . . . . . . . . . . . 288 . 109 . . . 55 7 . 184 91 . 401 22 36 429 428 68 144 3474 Reduced by Siege Mode 354 | . . . . . . . . . . . . . . . . . 5 3 . 19 20 . 17 . . 3 38 . 3 246 Redirected to Shielding 81 | . . . . . . . . . . . . . . . . . . . . . . . . . . . . . . 81 Regen/Repaired (Parts) 3206 | . 76 . 117 . 152 . . . . . . . 21 37 59 23 30 . . 89 526 35 478 64 . 197 135 142 66 959 Core Remaining (%) 78 | 100 . 35 . 70 67 . . . . 79 . . . . 61 . . . . 94 . . . . . . 78 99 100 76 Volleys Fired 1026 | 6 72 13 100 22 111 57 2 . . 11 49 55 55 . 10 6 6 6 17 18 16 4 58 8 11 42 37 19 25 190 Largest 5 | 2 2 2 2 2 3 3 1 . . 3 3 3 3 . 3 3 3 1 1 3 3 2 3 3 3 3 3 3 4 5 Hottest 255 | 80 80 40 129 129 152 126 39 . . 112 112 98 88 . 138 98 98 43 35 106 98 63 144 119 125 119 118 178 153 255 Shots Fired 2702 | 12 141 27 191 44 309 157 2 1 . 25 127 145 71 . 31 14 14 6 17 37 33 8 122 14 23 101 79 51 91 809 Gun 2117 | 12 141 27 114 22 217 156 . 1 . 22 118 125 68 . 31 14 12 3 15 30 31 8 108 8 12 88 57 29 66 582 Cannon 504 | . . . 73 22 87 1 . . . . . 13 . . . . . . . . . . 3 3 11 . 22 22 25 222 Launcher 57 | . . . 4 . 5 . 2 . . 3 9 7 3 . . . 2 3 . 7 . . . 3 . 5 . . . 4 Special 24 | . . . . . . . . . . . . . . . . . . . 2 . 2 . 11 . . 8 . . . 1 Kinetic 2053 | . 78 27 21 . 131 102 . 1 . 14 103 138 68 . 30 14 12 3 15 30 31 8 89 11 23 88 79 42 91 804 Thermal 568 | 12 63 . 166 44 173 55 . . . 8 15 . . . 1 . . . . . . . 22 . . . . 9 . . Explosive 53 | . . . 4 . 5 . 2 . . 3 9 7 3 . . . 2 3 . 7 . . . 3 . 5 . . . . Electromagnetic 4 | . . . . . . . . . . . . . . . . . . . . . . . . . . . . . . 4 Robot Hit Streak 47 | 4 12 4 8 13 18 27 . . . 9 36 47 12 . 9 6 6 2 19 22 12 19 29 11 21 15 10 9 23 31 Robot Miss Streak 7 | 2 5 2 6 5 3 3 1 . . 1 2 2 3 . 3 3 2 . . 2 1 . 3 . 1 3 3 2 2 7 Penetration Max 2 | . . . . . . . . . . . 1 1 1 . 1 . . . . . 1 . . . . 1 . . 1 2 Secondary Targets 20 | . 5 1 . . . . . . . . 2 1 1 . 1 . 1 . . . 1 . 1 . . 4 2 . . . Max Gunslinging Chain 1 | . 1 1 . . . . . . . . 1 1 1 . 1 . 1 . . . 1 . 1 . . 1 1 . . . Shots Hit Robots 1751 | 8 97 16 100 29 187 114 . . . 18 103 110 58 . 21 6 9 1 17 16 23 7 99 2 14 75 32 26 66 497 Core Hits 846 | 3 42 9 47 12 75 50 5 . . 9 76 63 27 . 9 3 7 7 3 15 9 2 27 7 5 55 12 16 37 214 Critical Kills 21 | . . . 1 . 1 . . . . . . 2 1 . 1 . . . . . 1 . 2 . . 2 . 3 . 7 Critical Parts Destroyed 31 | . . . . . 1 . . . . . 4 2 1 . 1 . . . 2 . 1 1 2 . . . 1 1 . 14 Critical Strikes 87 | . . . 4 3 9 6 . . . 2 4 5 2 . 2 . . . 3 . 2 1 5 . 1 2 2 6 1 27 Burn 23 | . . . 3 3 7 5 . . . 2 . . . . . . . . . . . . 1 . . . . 2 . . Meltdown 2 | . . . 1 . 1 . . . . . . . . . . . . . . . . . . . . . . . . . Destroy 53 | . . . . . 1 . . . . . 4 4 2 . 2 . . . 3 . 2 1 4 . . 2 2 4 1 21 Blast 8 | . . . . . . . . . . . . 1 . . . . . . . . . . . . 1 . . . . 6 Sever 1 | . . . . . . 1 . . . . . . . . . . . . . . . . . . . . . . . . Melee Attacks 22 | . 3 . 2 4 . 13 . . . . . . . . . . . . . . . . . . . . . . . . Impact 4 | . . . . 4 . . . . . . . . . . . . . . . . . . . . . . . . . . Slashing 13 | . . . . . . 13 . . . . . . . . . . . . . . . . . . . . . . . . Piercing . | . . . . . . . . . . . . . . . . . . . . . . . . . . . . . . . Sneak Attacks 8 | . 3 . 2 . . 3 . . . . . . . . . . . . . . . . . . . . . . . . Combat Hostiles . | . . . . . . . . . . . . . . . . . . . . . . . . . . . . . . . Follow-up Attacks . | . . . . . . . . . . . . . . . . . . . . . . . . . . . . . . . Damage Inflicted 48929 | 83 939 136 2225 689 4040 2863 175 . . 519 4240 4059 1531 . 551 130 281 481 388 856 535 158 2185 201 382 3302 661 716 1972 14631 Guns 32396 | 83 939 136 1193 360 2498 2179 . . . 309 1927 2203 1274 . 551 130 175 . 388 208 522 158 2134 133 240 1761 561 539 1387 10408 Cannons 7851 | . . . 886 278 1201 . . . . . . 361 . . . . . . . . . . . . 142 . 100 177 585 4121 Explosions 8239 | . . . 146 . 341 356 175 . . 210 2313 1495 257 . . . 106 481 . 648 . . . 68 . 1541 . . . 102 Melee 328 | . . . . . . 328 . . . . . . . . . . . . . . . . . . . . . . . . Ramming 115 | . . . . 51 . . . . . . . . . . . . . . . . 13 . 51 . . . . . . . Kinetic 32567 | . 436 136 97 . 1174 1148 . . . 189 1637 2564 1274 . 551 130 175 . 388 208 522 158 1719 133 382 1761 661 623 1972 14529 Thermal 7824 | 83 503 . 1982 638 2525 1031 . . . 120 434 . . . . . . . . . . . 415 . . . . 93 . . Explosive 7993 | . . . 146 . 341 356 175 . . 210 2169 1495 257 . . . 106 481 . 648 . . . 68 . 1541 . . . . Electromagnetic 102 | . . . . . . . . . . . . . . . . . . . . . . . . . . . . . . 102 Impact . | . . . . . . . . . . . . . . . . . . . . . . . . . . . . . . . Slashing 328 | . . . . . . 328 . . . . . . . . . . . . . . . . . . . . . . . . Piercing . | . . . . . . . . . . . . . . . . . . . . . . . . . . . . . . . Highest Corruption 38 | . 3 3 2 2 . 3 3 3 3 3 1 1 1 1 19 . . . . . 3 3 11 . . . . 2 . 38 Average Corruption 6 | . 1 3 1 2 . 1 3 3 3 2 1 1 1 1 1 . . . . . 2 3 6 . . . . 2 . 18 Corruption Purged 14 | . . . . . . . . . . 3 . . . . . . . . . . . . 11 . . . . . . . Corruption Blocked . | . . . . . . . . . . . . . . . . . . . . . . . . . . . . . . . Effects 406 | . . 9 25 18 . 17 14 11 2 8 1 16 8 1 5 . . . . . 2 4 59 . . . . 8 . 198 Message Errors 99 | . . 1 6 7 . 2 5 4 1 1 . 4 1 . 1 . . . . . . 1 18 . . . . 2 . 45 Matter Fused 104 | . . 1 7 3 . 8 6 3 . 3 . 2 4 1 2 . . . . . . . 14 . . . . 1 . 49 Heat Flow Errors 45 | . . 1 3 4 . 4 1 . 1 1 . 5 . . . . . . . . 1 . 6 . . . . 4 . 14 Energy Discharges 40 | . . 2 3 2 . . 1 2 . 2 . 2 1 . . . . . . . . 1 6 . . . . . . 18 Parts Rejected 4 | . . . 1 . . . . . . . . . . . . . . . . . . . 1 . . . . . . 2 Parts Fused 4 | . . . . . . . . . . . . . . . . . . . . . . . . . . . . . . 4 Data Loss (minor) 40 | . . 3 1 1 . 1 1 . . 1 . 1 1 . 1 . . . . . . 2 6 . . . . 1 . 20 Data Loss (major) 19 | . . . 2 1 . . . . . . 1 1 1 . . . . . . . . . 4 . . . . . . 9 Misfires 22 | . . 1 1 . . 2 . 1 . . . 1 . . 1 . . . . . . . 2 . . . . . . 13 Alerts 4 | . . . 1 . . . . 1 . . . . . . . . . . . . . . 1 . . . . . . 1 Weapon Failures 25 | . . . . . . . . . . . . . . . . . . . . . 1 . 1 . . . . . . 23 Overload Shots . | . . . . . . . . . . . . . . . . . . . . . . . . . . . . . . . Overflow Damage 783 | . . . 16 38 46 137 . . . 48 13 73 . . . . . . . . . . . . . 12 . . 31 369 Projectiles 464 | . . . 16 20 28 . . . . . . . . . . . . . . . . . . . . . . . 31 369 Explosions 167 | . . . . . 18 3 . . . 48 13 73 . . . . . . . . . . . . . 12 . . . . Melee 152 | . . . . 18 . 134 . . . . . . . . . . . . . . . . . . . . . . . . Knockbacks 30 | . . . . . . . . . . . . . . . . . . . . . . . . . . . . . 2 28 Impact . | . . . . . . . . . . . . . . . . . . . . . . . . . . . . . . . Kinetic 28 | . . . . . . . . . . . . . . . . . . . . . . . . . . . . . 1 27 Secondary 2 | . . . . . . . . . . . . . . . . . . . . . . . . . . . . . 1 1 Self-Inflicted Damage 152 | . . . . . . 63 . . . 25 23 . . . . . 25 . . . . . . . . 16 . . . . Shots 5 | . . . . . . 1 . . . 1 1 . . . . . 1 . . . . . . . . 1 . . . . Rammed 11 | . . . . 6 1 . . . . . . . . . . . . . . . 2 . 2 . . . . . . . Targets Rammed 12 | . . . . 7 1 . . . . . . . . . . . . . . . 2 . 2 . . . . . . . Kicked . | . . . . . . . . . . . . . . . . . . . . . . . . . . . . . . . Crushed 1 | . . . . 1 . . . . . . . . . . . . . . . . . . . . . . . . . . Highest Temperature 452 | 108 219 238 268 402 381 192 93 . 85 247 253 452 168 . 376 96 200 20 . . 131 . 233 9 15 . . 252 . 402 Average Temperature 85 | 55 62 51 72 102 127 32 58 . 50 53 70 144 63 . 149 48 88 7 . . 95 . 64 6 6 . . 60 . 41 Received Heat Transfer 4640 | . 225 . 219 87 702 105 . . . 30 291 348 . . 36 . 24 . . . 31 . 51 14 18 224 20 30 20 2165 Effects 33 | . 1 . 3 . 8 . . . . . . 16 . . 2 . . . . . . . . . . . . . . 3 Shutdowns 9 | . . . . . 1 . . . . . . 7 . . . . . . . . . . . . . . . . . 1 Energy Bleed 3 | . 1 . . . . . . . . . . 1 . . 1 . . . . . . . . . . . . . . . Interference 14 | . . . 3 . 3 . . . . . . 6 . . . . . . . . . . . . . . . . . 2 Matter Decay 3 | . . . . . 1 . . . . . . 1 . . 1 . . . . . . . . . . . . . . . Damage (minor) 4 | . . . . . 3 . . . . . . 1 . . . . . . . . . . . . . . . . . . Siege Activations 34 | . . . . . . . . . . . . . . . . . 1 1 . 1 2 . 5 2 2 1 2 3 3 11 Total Turns 3471 | . . . . . . . . . . . . . . . . . 13 8 . 18 23 . 105 35 9 64 50 18 27 3101 Longest Duration 1043 | . . . . . . . . . . . . . . . . . 13 8 . 18 16 . 31 22 7 64 27 7 15 1043 Martial Activations . | . . . . . . . . . . . . . . . . . . . . . . . . . . . . . . . Shielding Activations . | . . . . . . . . . . . . . . . . . . . . . . . . . . . . . . . Robots Disrupted . | . . . . . . . . . . . . . . . . . . . . . . . . . . . . . . . Combat Hostiles . | . . . . . . . . . . . . . . . . . . . . . . . . . . . . . . . Robots Corrupted . | . . . . . . . . . . . . . . . . . . . . . . . . . . . . . . . Combat Hostiles . | . . . . . . . . . . . . . . . . . . . . . . . . . . . . . . . Parts Fried . | . . . . . . . . . . . . . . . . . . . . . . . . . . . . . . . Impact Corruptions 1 | . . . . 1 . . . . . . . . . . . . . . . . . . . . . . . . . . Robots Melted 2 | . . . 1 . 1 . . . . . . . . . . . . . . . . . . . . . . . . . Combat Hostiles . | . . . . . . . . . . . . . . . . . . . . . . . . . . . . . . . Parts Melted 23 | . 1 . 7 2 9 1 . . . . 1 . . . . . . . . . . . 2 . . . . . . . Heat Transferred 15182 | 200 1125 . 3589 1332 4884 1998 . . . 370 581 . . . . . . . . . . . 703 . . . . 400 . . Parts Sabotaged . | . . . . . . . . . . . . . . . . . . . . . . . . . . . . . . . Parts Stolen . | . . . . . . . . . . . . . . . . . . . . . . . . . . . . . . . Parts Stripped . | . . . . . . . . . . . . . . . . . . . . . . . . . . . . . . . Power Chain Reactions 2 | . . . . . . . . . . . . . . . . . . . . . . . . . . . . . . 2 Alert | -11 -10 -10 -9 -9 -8 -7 -7 -7 -7 -6 -6 -6 -6 -6 -6 -5 -5 -5 -5 -4 -4 -4 -4 -4 -4 -4 -3 -3 -2 -1 ------- Run | Yrd Mat Min Mat Min Mat Fac Low Low Dat Pro Fac Ext Cet Arc Hub Fac Upp Upp Zhi Pro Fac Was Fac Upp Upp War Pro Res Res Acc Maximum Alert Level 4 | . . . 1 . 1 1 . . . . 1 1 1 . 1 . . . . . . . 2 . . . . . . 4 Low Security (%) 73 | 100 100 100 81 100 93 87 . . . . 75 78 93 100 75 100 . . . . 100 100 20 . . . . 100 100 16 Level 1 10 | . . . 18 . 6 12 . . . . 24 21 6 . 24 . . . . . . . 30 . . . . . . 7 Level 2 7 | . . . . . . . . . . . . . . . . . . . . . . . 49 . . . . . . 19 Level 3 4 | . . . . . . . . . . . . . . . . . . . . . . . . . . . . . . 28 Level 4 4 | . . . . . . . . . . . . . . . . . . . . . . . . . . . . . . 27 Level 5 . | . . . . . . . . . . . . . . . . . . . . . . . . . . . . . . . High Security . | . . . . . . . . . . . . . . . . . . . . . . . . . . . . . . . Max Security . | . . . . . . . . . . . . . . . . . . . . . . . . . . . . . . . Peak Influence 1319 | 10 168 71 326 135 269 302 . . . . 314 245 360 138 253 90 . . . . 101 30 520 . . . . 113 80 1319 Initial 190 | . . . 26 124 . 11 . . . . 190 142 18 138 30 88 . . . . . 30 . . . . . 37 . . Average 197 | 2 38 15 99 37 95 60 . . . . 113 157 75 121 122 17 . . . . 18 4 338 . . . . 16 12 726 Influence Increases 11853 | 10 511 137 1034 213 1035 672 108 . . 135 720 870 656 1 467 45 60 110 5 110 240 2 1311 90 50 536 116 285 226 2098 Destroy 0b10 Robot/C 6600 | . 340 100 580 160 640 300 80 . . 100 320 560 300 . 220 . 60 100 . 80 80 . 500 80 40 420 100 140 140 1160 Destroy 0b10 Robot/NC 595 | 10 30 . 75 10 95 70 . . . 10 25 40 10 . 15 10 . . 5 10 10 . 40 . . 5 . 5 30 90 Destroy Leader 1378 | . 70 20 178 20 180 130 20 . . 10 80 54 10 . 62 4 . 10 . 20 32 . 100 10 10 . 10 30 38 280 Allied During Kill 1106 | . . 11 9 . . . 8 . . . . 117 290 . 131 . . . . . 20 . 390 . . 66 6 3 . 55 Trap Triggered on 0b10 20 | . 20 . . . . . . . . . . . . . . . . . . . . . . . . . . . . . Successful Hack 383 | . 21 6 18 6 24 16 . . . . 12 25 7 . 12 12 . . . . 77 . 10 . . . . 80 . 57 Select Force Hacks 60 | . . . 60 . . . . . . . . . . . . . . . . . . . . . . . . . . . Disable Machine 495 | . . . 45 . 45 105 . . . . 60 30 . . . 15 . . . . 15 . 120 . . . . 15 . 45 Destroy Structure 766 | . . . 24 2 36 51 . . . . 58 29 24 1 12 4 . . . . 6 2 136 . . . . 12 18 351 Advance Influence 150 | . . . . . . . . . . . 150 . . . . . . . . . . . . . . . . . . . Partial Spotted 15 | . . . 15 . . . . . . . . . . . . . . . . . . . . . . . . . . . Lose Combat Pursuer 285 | . 30 . 30 15 15 . . . . 15 15 15 15 . 15 . . . . . . . 15 . . 45 . . . 60 Influence Decreases 10534 | 10 511 70 781 533 1010 397 408 . . 70 493 1128 344 258 376 225 60 110 5 110 152 90 1038 363 50 156 440 341 226 779 Entered New Map 1471 | . . . 41 196 . 14 111 . . . 25 150 16 208 59 92 . . . . . 58 . 102 . . 380 19 . . Time Decay 7235 | 10 491 70 581 337 703 383 297 . . 70 423 555 268 30 197 133 60 110 5 110 148 32 608 261 50 126 60 302 226 589 Lost Part 335 | . 20 . 10 . 30 . . . . . 45 20 . . . . . . . . . . 10 . . 10 . . . 190 Lost Ally 728 | . . . 40 . . . . . . . . 178 60 20 120 . . . . . . . 270 . . 20 . 20 . . Purge Threat 765 | . . . 109 . 277 . . . . . . 225 . . . . . . . . 4 . 150 . . . . . . . Squads Dispatched 69 | . 2 . 7 1 3 6 . . . . 3 1 . . 4 1 . . . . 1 . 9 . . . . 6 2 23 Investigation 12 | . 2 . 5 1 . 1 . . . . 1 . . . . . . . . . . . . . . . . 2 . . Extermination 23 | . . . . . . 5 . . . . 2 . . . 1 1 . . . . 1 . 3 . . . . . . 10 Reinforcement 20 | . . . 2 . 3 . . . . . . 1 . . 3 . . . . . . . 4 . . . . 3 2 2 Assault 10 | . . . . . . . . . . . . . . . . . . . . . . . 2 . . . . . . 8 Garrison 4 | . . . . . . . . . . . . . . . . . . . . . . . . . . . . 1 . 3 Intercept . | . . . . . . . . . . . . . . . . . . . . . . . . . . . . . . . Searches Triggered . | . . . . . . . . . . . . . . . . . . . . . . . . . . . . . . . Unchained Authorized 1 | . . . . . . . . . . . . . . . . . . . . . . . . . . . . . . 1 Data Miner Redirects 7 | . . . . . . . . . . . 1 . . . . . . . . . . . . . . . . . . 6 Construction Impeded 3 | . . . . . . . . . . . . 1 . . . . . . . . . . 1 . . . . . . 1 Haulers Reinforced 4 | . . . . . . . . . . . . . . . . . . . . . . . 1 . . . . 1 1 1 Active Scanning Responses . | . . . . . . . . . . . . . . . . . . . . . . . . . . . . . . . Cargo Convoy Interrupts 2 | . . . . . . . . . . . 1 . . . . . . . . . . . 1 . . . . . . . Stealth | -11 -10 -10 -9 -9 -8 -7 -7 -7 -7 -6 -6 -6 -6 -6 -6 -5 -5 -5 -5 -4 -4 -4 -4 -4 -4 -4 -3 -3 -2 -1 --------- Run | Yrd Mat Min Mat Min Mat Fac Low Low Dat Pro Fac Ext Cet Arc Hub Fac Upp Upp Zhi Pro Fac Was Fac Upp Upp War Pro Res Res Acc Distress Signals 28 | . 4 . 1 1 3 . . . . . 1 . 2 . 1 . . . . 1 . . 4 . . 1 . 4 5 . Communications Jammed 47 | . . . . . . . . . . . 3 . . . . . . . . . . . 10 . . . . 5 . 29 Distress Signals 33 | . . . . . . . . . . . . . . . . . . . . . . . 10 . . . . 5 . 18 Times Spotted 486 | . 24 6 42 9 47 21 1 . . 7 28 33 15 . 5 1 3 3 . 6 4 . 30 1 3 59 5 15 12 106 Peak Tracking Total 13 | . 6 3 6 3 9 2 1 . . 4 13 8 8 . 4 1 3 5 . 2 2 . 4 1 1 10 4 3 5 6 Tactical Retreats 18 | . 1 . 2 1 1 . . . . 1 1 1 1 . 1 . . . . . . . 1 . . 3 . . . 4 Traps | -11 -10 -10 -9 -9 -8 -7 -7 -7 -7 -6 -6 -6 -6 -6 -6 -5 -5 -5 -5 -4 -4 -4 -4 -4 -4 -4 -3 -3 -2 -1 ------- Run | Yrd Mat Min Mat Min Mat Fac Low Low Dat Pro Fac Ext Cet Arc Hub Fac Upp Upp Zhi Pro Fac Was Fac Upp Upp War Pro Res Res Acc Traps Triggered 17 | . 2 . 2 . 4 2 . . . . . 1 . . . . . . . . 1 . 4 . . . . 1 . . Indirectly . | . . . . . . . . . . . . . . . . . . . . . . . . . . . . . . . Trap Hack Attempts 169 | . 119 . 50 . . . . . . . . . . . . . . . . . . . . . . . . . . . Triggered . | . . . . . . . . . . . . . . . . . . . . . . . . . . . . . . . Disarmed . | . . . . . . . . . . . . . . . . . . . . . . . . . . . . . . . Reprogrammed 15 | . 11 . 4 . . . . . . . . . . . . . . . . . . . . . . . . . . . Reused 2 | . 2 . . . . . . . . . . . . . . . . . . . . . . . . . . . . . Traps Extracted 3 | . . . 3 . . . . . . . . . . . . . . . . . . . . . . . . . . . Installed . | . . . . . . . . . . . . . . . . . . . . . . . . . . . . . . . Triggered 2 | . 2 . . . . . . . . . . . . . . . . . . . . . . . . . . . . . Most Traps Carried 3 | . . . 3 . . . . . . . . . . . . . . . . . . . . . . . . . . . Machines | -11 -10 -10 -9 -9 -8 -7 -7 -7 -7 -6 -6 -6 -6 -6 -6 -5 -5 -5 -5 -4 -4 -4 -4 -4 -4 -4 -3 -3 -2 -1 ---------- Run | Yrd Mat Min Mat Min Mat Fac Low Low Dat Pro Fac Ext Cet Arc Hub Fac Upp Upp Zhi Pro Fac Was Fac Upp Upp War Pro Res Res Acc Machines Disabled 34 | . . . 3 . 3 7 . . . . 4 3 . . . 1 . . . . 1 . 8 . . . . 1 . 3 Max in Single Turn 4 | . . . 1 . 1 4 . . . . 4 1 . . . 1 . . . . 1 . 2 . . . . 1 . 1 Garrison Access 8 | . . . . . 1 . . . . . 1 . . . . . . . . . . . 2 . . . . 3 1 . Machines Repaired . | . . . . . . . . . . . . . . . . . . . . . . . . . . . . . . . Machines Dismantled . | . . . . . . . . . . . . . . . . . . . . . . . . . . . . . . . Machines Sabotaged . | . . . . . . . . . . . . . . . . . . . . . . . . . . . . . . . Overloaded Fab Kills . | . . . . . . . . . . . . . . . . . . . . . . . . . . . . . . . Hacking | -11 -10 -10 -9 -9 -8 -7 -7 -7 -7 -6 -6 -6 -6 -6 -6 -5 -5 -5 -5 -4 -4 -4 -4 -4 -4 -4 -3 -3 -2 -1 --------- Run | Yrd Mat Min Mat Min Mat Fac Low Low Dat Pro Fac Ext Cet Arc Hub Fac Upp Upp Zhi Pro Fac Was Fac Upp Upp War Pro Res Res Acc Machines Accessed 127 | . 8 1 15 2 11 11 3 . 3 . 8 6 1 . 1 4 . 2 5 . 6 . 9 . 1 8 . 15 2 5 Terminals 53 | . 7 1 10 1 6 3 . . . . 4 6 1 . 1 2 . . . . 2 . 3 . . . . 3 . 3 Fabricators 9 | . . . . . . 3 . . . . 1 . . . . 1 . . . . 1 . . . . . . 3 . . Repair Stations 19 | . 1 . 2 . 2 3 . . . . . . . . . 1 . . . . 3 . 3 . . . . 3 1 . Recycling Units 5 | . . . 2 . . . . . . . 1 . . . . . . . . . . . 1 . . . . 1 . . Scanalyzers 7 | . . . 1 . 2 2 . . . . . . . . . . . . . . . . . . . . . 2 . . Garrison Access 11 | . . . . . 1 . . . . . 2 . . . . . . . . . . . 2 . . . . 3 1 2 Total Hacks 328 | . 29 3 38 5 27 20 8 . 24 . 16 17 2 . 3 9 . 5 18 . 15 . 19 . 1 14 . 39 3 13 Successful 197 | . 13 2 20 3 19 10 8 . 24 . 4 7 1 . 1 4 . 5 18 . 11 . 11 . 1 14 . 16 1 4 Failed 128 | . 16 . 18 2 8 9 . . . . 12 10 1 . 2 5 . . . . 4 . 8 . . . . 22 2 9 Catastrophic 24 | . . . 2 . 1 6 . . . . 3 3 . . . 1 . . . . . . 3 . . . . 5 . . Database Lockouts 3 | . . 1 . . . 1 . . . . . . . . . . . . . . . . . . . . . 1 . . Manual 94 | . 21 2 16 4 10 2 . . . . 3 9 1 . 2 4 . . . . 4 . 6 . . 1 . 6 . 3 Terminals 147 | . 27 3 30 4 15 4 . . . . 7 17 2 . 3 4 . . . . 7 . 8 . . . . 7 . 9 Fabricators 20 | . . . . . . 4 . . . . 3 . . . . 2 . . . . 2 . . . . . . 9 . . Repair Stations 39 | . 2 . 4 . 4 4 . . . . . . . . . 3 . . . . 6 . 6 . . . . 9 1 . Recycling Units 8 | . . . 2 . . . . . . . 2 . . . . . . . . . . . 3 . . . . 1 . . Scanalyzers 26 | . . . 2 . 7 8 . . . . . . . . . . . . . . . . . . . . . 9 . . Garrison Access 17 | . . . . . 1 . . . . . 4 . . . . . . . . . . . 2 . . . . 4 2 4 Terminal Hacks 121 | . 9 2 11 3 5 1 8 . 24 . . 6 1 . 1 1 . 5 18 . 5 . 3 . 1 14 . . . 3 Record 35 | . . . . . . . 6 . 6 . . . . . . . . 4 6 . . . . . . 13 . . . . Part Schematic 16 | . . . . . . . . . 10 . . 2 . . . . . . 4 . . . . . . . . . . . Robot Schematic 5 | . . . . . . . . . 5 . . . . . . . . . . . . . . . . . . . . . Robot Analysis 15 | . 4 1 3 1 . . . . . . . . . . . . . . 4 . 1 . . . . . . . . 1 Prototype ID Bank 11 | . 1 . 2 . 1 . . . 3 . . . . . . . . . 4 . . . . . . . . . . . Open Door 8 | . . . . 1 . . 2 . . . . . 1 . . . . 1 . . . . . . 1 1 . . . 1 Branch Access Points 3 | . . . . . . . . . . . . . . . . . . . . . 1 . 1 . . . . . . 1 Emergency Access Points 1 | . . . 1 . . . . . . . . . . . . . . . . . . . . . . . . . . . Terminal Index 3 | . 1 . 1 . . . . . . . . . . . . . . . . . 1 . . . . . . . . . Alert Level 3 | . . 1 . . . . . . . . . 1 . . . . . . . . . . 1 . . . . . . . Unreport Threat 7 | . . . 1 . 2 . . . . . . 2 . . . . . . . . 1 . 1 . . . . . . . Locate Traps 6 | . 2 . . . 1 1 . . . . . . . . . 1 . . . . 1 . . . . . . . . . Zone Layout 8 | . 1 . 3 1 1 . . . . . . 1 . . 1 . . . . . . . . . . . . . . . Fabricator Hacks 8 | . . . . . . 2 . . . . 1 . . . . 1 . . . . 1 . . . . . . 3 . . Network Status 4 | . . . . . . 1 . . . . . . . . . 1 . . . . 1 . . . . . . 1 . . Load Schematic 3 | . . . . . . 1 . . . . 1 . . . . . . . . . . . . . . . . 1 . . Build 1 | . . . . . . . . . . . . . . . . . . . . . . . . . . . . 1 . . Repair Station Hacks 25 | . 2 . 4 . 4 1 . . . . . . . . . 1 . . . . 4 . 5 . . . . 4 . . Scan Component 15 | . 1 . 2 . 2 1 . . . . . . . . . 1 . . . . 2 . 3 . . . . 3 . . Repair 10 | . 1 . 2 . 2 . . . . . . . . . . . . . . . 2 . 2 . . . . 1 . . Recycling Unit Hacks 3 | . . . . . . . . . . . 1 . . . . . . . . . . . 2 . . . . . . . Retrieve Matter 1 | . . . . . . . . . . . . . . . . . . . . . . . 1 . . . . . . . Retrieve Components 2 | . . . . . . . . . . . 1 . . . . . . . . . . . 1 . . . . . . . Scanalyzer 17 | . . . 1 . 7 6 . . . . . . . . . . . . . . . . . . . . . 3 . . Insert Component 4 | . . . 1 . 1 2 . . . . . . . . . . . . . . . . . . . . . . . . Analyze 4 | . . . . . 1 3 . . . . . . . . . . . . . . . . . . . . . . . . Retrieve Study 9 | . . . . . 5 1 . . . . . . . . . . . . . . . . . . . . . 3 . . Garrison Access Hacks 7 | . . . . . 1 . . . . . 1 . . . . . . . . . . . 1 . . . . 3 1 . Seal Access 7 | . . . . . 1 . . . . . 1 . . . . . . . . . . . 1 . . . . 3 1 . Unauthorized Hacks 16 | . 2 . 4 . 2 . . . . . 1 1 . . . 1 . . . . 1 . . . . . . 3 . 1 Terminals 11 | . 2 . 2 . 2 . . . . . 1 1 . . . 1 . . . . . . . . . . . 1 . 1 Assimilate 1 | . . . . . 1 . . . . . . . . . . . . . . . . . . . . . . . . . Botnet 10 | . 2 . 2 . 1 . . . . . 1 1 . . . 1 . . . . . . . . . . . 1 . 1 Fabricators 3 | . . . . . . . . . . . . . . . . . . . . . 1 . . . . . . 2 . . Report 1 | . . . . . . . . . . . . . . . . . . . . . . . . . . . . 1 . . Liberate 2 | . . . . . . . . . . . . . . . . . . . . . 1 . . . . . . 1 . . Repair Stations . | . . . . . . . . . . . . . . . . . . . . . . . . . . . . . . . Recycling Units 2 | . . . 2 . . . . . . . . . . . . . . . . . . . . . . . . . . . Tunnel 2 | . . . 2 . . . . . . . . . . . . . . . . . . . . . . . . . . . Scanalyzers . | . . . . . . . . . . . . . . . . . . . . . . . . . . . . . . . Garrison Access . | . . . . . . . . . . . . . . . . . . . . . . . . . . . . . . . Data Cores Recovered 1 | . . . . . . . . . . . . . . . . . . . . . . . . . . . . 1 . . Used . | . . . . . . . . . . . . . . . . . . . . . . . . . . . . . . . Hacking Detections 89 | . 8 1 11 1 8 9 . . . . 8 6 . . 1 4 . . . . 6 . 7 . . . . 12 2 5 Full Trace Events 6 | . 2 . 1 . . 1 . . . . 1 . . . . . . . . . . . . . . . . 1 . . Feedback Events 1 | . . . 1 . . . . . . . . . . . . . . . . . . . . . . . . . . . Corruption 1 | . . . 1 . . . . . . . . . . . . . . . . . . . . . . . . . . . Feedback Blocked . | . . . . . . . . . . . . . . . . . . . . . . . . . . . . . . . Robot Schematics Acquired 5 | . . . . . . . . . 5 . . . . . . . . . . . . . . . . . . . . . Robots Built . | . . . . . . . . . . . . . . . . . . . . . . . . . . . . . . . Authchips . | . . . . . . . . . . . . . . . . . . . . . . . . . . . . . . . Time . | . . . . . . . . . . . . . . . . . . . . . . . . . . . . . . . Total Robot Build Rating . | . . . . . . . . . . . . . . . . . . . . . . . . . . . . . . . Part Schematics Acquired 19 | . . . . . 1 2 . . 10 . . 2 . . . . . . 4 . . . . . . . . . . . Parts Built 2 | . . . . . . . . . . . . . . . . . . . . . . . . . . . . 2 . . Authchips . | . . . . . . . . . . . . . . . . . . . . . . . . . . . . . . . Time 47 | . . . . . . . . . . . . . . . . . . . . . . . . . . . . 47 . . Total Part Build Rating 10 | . . . . . . . . . . . . . . . . . . . . . . . . . . . . 10 . . Part Studies Acquired 9 | . . . . . 5 1 . . . . . . . . . . . . . . . . . . . . . 3 . . Parts Repaired 9 | . 1 . 2 . 2 . . . . . . . . . . . . . . . 1 . 2 . . . . 1 . . Time 520 | . 26 . 52 . 146 . . . . . . . . . . . . . . . 153 . 127 . . . . 16 . . Parts Recycled . | . . . . . . . . . . . . . . . . . . . . . . . . . . . . . . . Recycled Matter . | . . . . . . . . . . . . . . . . . . . . . . . . . . . . . . . Retrieved Matter 117 | . . . . . . . . . . . . . . . . . . . . . . . 117 . . . . . . . Retrieved Components 13 | . . . . . . . . . . . 3 . . . . . . . . . . . 10 . . . . . . . Parts Scanalyzed 3 | . . . . . 1 2 . . . . . . . . . . . . . . . . . . . . . . . . Part Schematics Acquired 3 | . . . . . 1 2 . . . . . . . . . . . . . . . . . . . . . . . . Parts Damaged . | . . . . . . . . . . . . . . . . . . . . . . . . . . . . . . . Bothacking | -11 -10 -10 -9 -9 -8 -7 -7 -7 -7 -6 -6 -6 -6 -6 -6 -5 -5 -5 -5 -4 -4 -4 -4 -4 -4 -4 -3 -3 -2 -1 ------------ Run | Yrd Mat Min Mat Min Mat Fac Low Low Dat Pro Fac Ext Cet Arc Hub Fac Upp Upp Zhi Pro Fac Was Fac Upp Upp War Pro Res Res Acc Used RIF Installer . | . . . . . . . . . . . . . . . . . . . . . . . . . . . . . . . Robots Hacked 15 | . 1 . . . . . . . . . . . . . . . . . . . 1 . 5 . . 7 . . . 1 Non-combat 6 | . 1 . . . . . . . . . . . . . . . . . . . 1 . 4 . . . . . . . Combat 8 | . . . . . . . . . . . . . . . . . . . . . . . 1 . . 7 . . . . Robot Hacks Applied 21 | . 2 . . . . . . . . . . . . . . . . . . . 2 . 10 . . 7 . . . . parse_system 10 | . 1 . . . . . . . . . . . . . . . . . . . . . 2 . . 7 . . . . no_distress 6 | . 1 . . . . . . . . . . . . . . . . . . . 1 . 4 . . . . . . . find_chute 1 | . . . . . . . . . . . . . . . . . . . . . 1 . . . . . . . . . find_fabricator 2 | . . . . . . . . . . . . . . . . . . . . . . . 2 . . . . . . . find_dsf 2 | . . . . . . . . . . . . . . . . . . . . . . . 2 . . . . . . . Manual 1 | . . . . . . . . . . . . . . . . . . . . . . . . . . . . . . 1 Relay Couplers Released 9 | . . . . . . 4 . . . . . . . . . . . . . . . . 3 . . . . . . 2 Machine Destruction 3 | . . . . . . . . . . . . . . . . . . . . . . . 3 . . . . . . . Programmers 6 | . . . . . . 4 . . . . . . . . . . . . . . . . . . . . . . . 2 Fabnet Peak Effective % . | . . . . . . . . . . . . . . . . . . . . . . . . . . . . . . . Robots Rewired 19 | . . . . . . . . . . . . 14 . . . . . . . . . . . . . 5 . . . . Allies Hacked 2 | . . . . . . . . . . . . . . . . . . . . . . . 1 . . . . . . 1 Hacks Repelled . | . . . . . . . . . . . . . . . . . . . . . . . . . . . . . . . Allies | -11 -10 -10 -9 -9 -8 -7 -7 -7 -7 -6 -6 -6 -6 -6 -6 -5 -5 -5 -5 -4 -4 -4 -4 -4 -4 -4 -3 -3 -2 -1 -------- Run | Yrd Mat Min Mat Min Mat Fac Low Low Dat Pro Fac Ext Cet Arc Hub Fac Upp Upp Zhi Pro Fac Was Fac Upp Upp War Pro Res Res Acc Total Allies 60 | . . 3 . . . . 3 . . . . 20 5 . . . . . . . 3 20 . . . 5 . . . 1 Largest Group 20 | . . 3 3 . . . 3 . . . . 12 10 8 6 . . . . . 3 20 20 . . 5 3 3 . 1 Highest-Rated Group 766 | . . 40 40 . . . 75 . . . . 356 736 489 432 . . . . . 141 766 766 . . 297 192 192 . 219 Highest-Rated Ally 219 | . . 16 16 . . . 25 . . . . 159 159 96 96 . . . . . 47 50 50 . . 64 64 64 . 219 Total Orders 12 | . . . . . . . . . . . . . 2 . . . . . . . . . . . . . 8 2 . . STAY 6 | . . . . . . . . . . . . . 1 . . . . . . . . . . . . . 4 1 . . FOLLOW 6 | . . . . . . . . . . . . . 1 . . . . . . . . . . . . . 4 1 . . Ally Attacks 424 | . . . 18 . . . 2 . . . . 95 103 2 25 . . . . . 20 . 119 . . 16 . . . 24 Total Damage 13798 | . . . 212 . . . 74 . . . . 1914 2920 . 835 . . . . . 449 . 4047 . . 549 . . . 2798 Kills 83 | . . . 2 . . . 1 . . . . 10 17 . 9 . . . . . 2 . 25 . . 6 . . . 11 Allies Corrupted 3 | . . . . . . . . . . . . . . . . . . . . . . . 3 . . . . . . . Allies Melted 2 | . . . . . . . . . . . . . . . . . . . . . . . . . . 2 . . . . Intel | -11 -10 -10 -9 -9 -8 -7 -7 -7 -7 -6 -6 -6 -6 -6 -6 -5 -5 -5 -5 -4 -4 -4 -4 -4 -4 -4 -3 -3 -2 -1 ------- Run | Yrd Mat Min Mat Min Mat Fac Low Low Dat Pro Fac Ext Cet Arc Hub Fac Upp Upp Zhi Pro Fac Was Fac Upp Upp War Pro Res Res Acc Active Infowar (turns) 34449 | 18 849 . 598 1 666 1904 880 678 142 2028 863 . . . 321 749 837 1264 330 1175 683 258 2232 3663 2327 1258 3130 1603 1321 4671 Optics 4 | . . . . . . . . . . . 1 . . . . . . . . 1 . . . . . 2 . . . . Sensors 27129 | . . . . 1 666 1762 880 678 142 2028 804 . . . 286 716 794 1264 330 1175 525 258 1668 3567 2293 889 3097 1583 1301 422 Terrain 13753 | . . . . . . . . . . . . . . . . . . . . . . . 46 3646 2327 1258 3130 1595 1267 484 Structural 1 | . . . 1 . . . . . . . . . . . . . . . . . . . . . . . . . . . Seismic 1464 | 18 849 . 597 . . . . . . . . . . . . . . . . . . . . . . . . . . . Jamming 11553 | . . . . . . 142 . . . . 58 . . . 35 740 539 . . . 683 258 2223 728 30 . . 1399 47 4671 Robot Analysis Total 15 | . 4 1 3 1 . . . . . . . . . . . . . . 4 . 1 . . . . . . . . 1 Derelict Logs Recovered 12 | . . . . 2 . . 1 2 . 2 . . . . . . 1 1 . 1 . . . 1 1 . . . . . Drone Launches . | . . . . . . . . . . . . . . . . . . . . . . . . . . . . . . . Drone Recoveries . | . . . . . . . . . . . . . . . . . . . . . . . . . . . . . . . Exploration | -11 -10 -10 -9 -9 -8 -7 -7 -7 -7 -6 -6 -6 -6 -6 -6 -5 -5 -5 -5 -4 -4 -4 -4 -4 -4 -4 -3 -3 -2 -1 ------------- Run | Yrd Mat Min Mat Min Mat Fac Low Low Dat Pro Fac Ext Cet Arc Hub Fac Upp Upp Zhi Pro Fac Was Fac Upp Upp War Pro Res Res Acc Turns Passed 46796 | 41 2353 328 2661 1256 3449 2695 996 678 144 2147 1308 1736 819 74 480 749 840 1264 332 1270 683 258 2232 3663 2327 1258 3130 1603 1321 4701 Spaces Moved 18410 | 16 871 121 1132 686 1560 1192 589 426 88 900 670 710 288 36 176 405 482 734 173 672 270 138 988 710 714 635 758 859 706 705 Core . | . . . . . . . . . . . . . . . . . . . . . . . . . . . . . . . Treads 18225 | . 702 121 1132 686 1560 1192 589 426 88 900 670 710 288 36 176 405 482 734 173 672 270 138 988 710 714 635 758 859 706 705 Legs 185 | 16 169 . . . . . . . . . . . . . . . . . . . . . . . . . . . . . Wheels . | . . . . . . . . . . . . . . . . . . . . . . . . . . . . . . . Hover . | . . . . . . . . . . . . . . . . . . . . . . . . . . . . . . . Flight . | . . . . . . . . . . . . . . . . . . . . . . . . . . . . . . . Fastest Speed 120 | 120 160 240 160 160 145 145 160 155 155 155 152 155 162 207 207 166 166 166 166 166 166 166 158 158 158 158 163 155 156 156 Average Speed 168 | 120 220 240 160 160 177 176 160 157 155 156 156 188 197 207 209 166 166 166 166 166 166 166 162 158 158 159 163 165 158 156 Slowest Speed 320 | 120 320 240 240 160 240 208 213 160 195 195 192 205 207 207 250 166 166 166 166 166 166 166 166 158 158 166 163 249 160 160 Overloaded Moves . | . . . . . . . . . . . . . . . . . . . . . . . . . . . . . . . Propulsion Burnouts . | . . . . . . . . . . . . . . . . . . . . . . . . . . . . . . . Robots Hopped . | . . . . . . . . . . . . . . . . . . . . . . . . . . . . . . . Potential Cave-ins 8 | . . . . . . . . . . . . . . . . . . . . . . . . . . . . . . 8 Cave-ins Triggered . | . . . . . . . . . . . . . . . . . . . . . . . . . . . . . . . Exploration Rate (%) 57 | 3 99 24 91 96 87 31 80 68 73 81 14 84 76 63 17 9 68 80 62 72 7 79 24 75 76 85 81 32 26 12 Regions Visited 30 Branch Regions 18 Pre-discovered Areas 9 | . . . 2 1 . . . 1 1 . . . . . . . 1 . 3 . . . . . . . . . . . Known Exits Taken 23 | . . . . . 1 1 1 1 1 1 1 1 1 1 1 1 1 1 1 1 . . 1 1 1 1 1 1 1 . Unknown Exits Taken 5 | 1 1 1 1 1 . . . . . . . . . . . . . . . . . . . . . . . . . . Scrap Searched 33 | . . . . 2 . . 8 3 . 2 . . . . . . 3 3 . 5 . . . 4 2 . 1 . . . Spaces Dug 80 | . . . 12 . 9 9 . . . . . . . . . . . 2 . 1 . . 3 1 2 20 10 5 1 5 Terrain Destroyed 972 | . . . 26 . 42 51 30 . . 50 72 32 46 . 4 2 35 53 . 88 8 2 12 77 11 120 31 7 13 160 Melee 9 | . . . . . . 9 . . . . . . . . . . . . . . . . . . . . . . . . Projectile 309 | . . . . . . . . . . 2 1 2 1 . 4 2 4 3 . 9 8 2 12 7 11 49 30 7 13 142 AOE 647 | . . . 26 . 42 42 30 . . 48 71 29 45 . . . 31 50 . 79 . . . 70 . 71 . . . 13 Terrain Rammed . | . . . . . . . . . . . . . . . . . . . . . . . . . . . . . . . Walls Destroyed . | . . . . . . . . . . . . . . . . . . . . . . . . . . . . . . . Machines Disabled . | . . . . . . . . . . . . . . . . . . . . . . . . . . . . . . . Actions | -11 -10 -10 -9 -9 -8 -7 -7 -7 -7 -6 -6 -6 -6 -6 -6 -5 -5 -5 -5 -4 -4 -4 -4 -4 -4 -4 -3 -3 -2 -1 --------- Run | Yrd Mat Min Mat Min Mat Fac Low Low Dat Pro Fac Ext Cet Arc Hub Fac Upp Upp Zhi Pro Fac Was Fac Upp Upp War Pro Res Res Acc Total 32256 | 25 1180 137 1792 789 2014 1632 636 433 95 1616 829 1006 484 36 264 474 507 771 200 791 476 159 1524 3238 1892 807 2588 1010 862 3989 Wait 11145 | 3 48 . 357 43 154 263 30 . . 686 50 83 77 . 40 21 12 28 . 82 165 18 393 2504 1154 65 1779 67 59 2964 Move 18381 | 15 870 120 1131 685 1559 1191 588 425 87 899 669 709 287 35 175 404 481 733 172 671 270 137 988 709 713 634 757 858 705 704 Hop . | . . . . . . . . . . . . . . . . . . . . . . . . . . . . . . . Pick Up 273 | . 26 1 48 6 32 11 1 1 1 2 15 13 14 . 5 13 . . 1 2 4 . 16 5 1 3 3 18 13 18 Fast Attach 141 | 1 1 . 6 5 20 7 . 1 2 2 3 7 9 . 4 5 . . 3 2 3 . 11 . 2 7 2 10 17 11 Attach 86 | . 2 . 3 . 4 3 . . 1 . 7 4 4 . 4 3 . . . . 4 . 8 . 1 . . 5 2 31 Detach 35 | . . . 2 . 1 1 . . . 1 1 1 . . 1 . . . . 1 2 . 3 . . 2 . . 1 18 Swap 455 | . 20 3 51 6 72 62 13 3 1 10 22 11 9 1 15 6 8 4 4 12 7 . 27 9 6 12 5 8 9 39 Drop 376 | . 19 . 42 11 60 24 2 3 3 5 13 19 29 . 10 16 . . 3 3 3 . 19 3 3 11 5 25 31 14 Fire 1026 | 6 72 13 100 22 111 57 2 . . 11 49 55 55 . 10 6 6 6 17 18 16 4 58 8 11 42 37 19 25 190 Melee 22 | . 3 . 2 4 . 13 . . . . . . . . . . . . . . . . . . . . . . . . Ram . | . . . . . . . . . . . . . . . . . . . . . . . . . . . . . . . Kick . | . . . . . . . . . . . . . . . . . . . . . . . . . . . . . . . Crush 11 | . . . . 7 1 . . . . . . . . . . . . . . . 2 . 1 . . . . . . . Escape Stasis 2 | . . . . . . . . . . . . 2 . . . . . . . . . . . . . . . . . . Rewire 134 | . . . . . . . . . . . . 102 . . . . . . . . . . . . 1 31 . . . . Trap 169 | . 119 . 50 . . . . . . . . . . . . . . . . . . . . . . . . . . . Miscellaneous . | . . . . . . . . . . . . . . . . . . . . . . . . . . . . . . . Route ------- -11/Scrapyard -10/Materials (discovered 6 exits: *Mat x3 / *Min x2 / [*Sub]) -10/Mines (discovered 2 exits: *Mat x2) -9/Materials (discovered 4 exits: *Mat x2 / *Min x2) -9/Mines (discovered 2 exits: *Mat x2) -8/Materials (discovered 5 exits: *Fac x3 / *Sto x2) -7/Factory (discovered 4 exits: *Fac x2 / *Low x2) -7/Lower Caves -7/Lower Caves (discovered 2 exits: *Fac / *Dat) -7/Data Miner -6/Proximity Caves -6/Factory -6/Extension (discovered 2 exits: *Fac / *Cet) -6/Cetus (discovered 2 exits: *Fac / *Arc) -6/Archives -6/Hub_04(d) -5/Factory -5/Upper Caves -5/Upper Caves (discovered 2 exits: *Fac / *Zhi) -5/Zhirov -4/Proximity Caves -4/Factory (discovered 4 exits: Res / Upp x2 / Arm) -4/Waste -4/Factory (discovered 3 exits: *Upp x2 / Arm) -4/Upper Caves -4/Upper Caves (discovered 2 exits: *Res / *War) -4/Warlord -3/Proximity Caves -3/Research -2/Research (discovered 2 exits: *Acc / *Qua) -1/Access (discovered 2 exits: *Sur / Com) To Epsilon Eridani History --------- Turn | Location | Event 20 | -11/Scrapyard | Discovered new exit (range 2) 42 | -11/Scrapyard | Entered Materials 194 | -10/Materials | Discovered new exit (range 15) 304 | -10/Materials | Build established: Mutant 855 | -10/Materials | Discovered new exit (range 13) 894 | -10/Materials | Core integrity fell below 50% 990 | -10/Materials | Discovered new exit (range 16) 1184 | -10/Materials | Discovered new exit (range 8) 1239 | -10/Materials | Discovered new exit (range 5) 1284 | -10/Materials | Repaired Lgt. Treads 1945 | -10/Materials | Discovered new exit (range 16) 2395 | -10/Materials | Entered Mines 2539 | -10/Mines | Assisted by bots powering up and referring to "LRC-V3" 2575 | -10/Mines | Discovered new exit (range 8) 2701 | -10/Mines | Discovered new exit (range 5) 2723 | -10/Mines | Central database locked down 2723 | -10/Mines | Entered Materials 2723 | -9/Materials | Accompanied by 3 allies 2723 | -9/Materials | Evolved 2 slots: Propulsion x1, Utility x1 2825 | -9/Materials | Repaired Lgt. Treads 2906 | -9/Materials | Lost 3 allies 3142 | -9/Materials | Discovered new exit (range 5) 3516 | -9/Materials | Discovered new exit (range 13) 3865 | -9/Materials | Discovered new exit (range 6) 4143 | -9/Materials | Repaired Hcp. Storage Unit 4467 | -9/Materials | Discovered new exit (range 14) 5025 | -9/Materials | Build established: Scavenger-Mutant 5384 | -9/Materials | Entered Mines 5395 | -9/Mines | Met a Derelict bent on vengeance 5397 | -9/Mines | A weapon hastily lodged in a ceiling crevice suddenly fell to the ground 5611 | -9/Mines | Discovered new exit (range 5) 5701 | -9/Mines | Found a hidden stash of uninstalled traps 5845 | -9/Mines | Met a Derelict shopkeep closing up shop 5893 | -9/Mines | Excavation squad dispatched 5893 | -9/Mines | A large section of the Mines collapsed 6042 | -9/Mines | Discovered new exit (range 5) 6256 | -9/Mines | Found a damaged Exp. Sensor Array with a note attached 6260 | -9/Mines | Found Prototype Device 6260 | -9/Mines | Identified Exp. Sensor Array 6640 | -9/Mines | Entered Materials 6640 | -8/Materials | Evolved 2 slots: Utility x1, Weapon x1 7271 | -8/Materials | Discovered new exit (range 13) 7338 | -8/Materials | Discovered new exit (range 3) 7347 | -8/Materials | Identified exit to Storage 7498 | -8/Materials | Build established: Scavenger-Tank 8168 | -8/Materials | Discovered new exit (range 13) 8529 | -8/Materials | Discovered new exit (range 16) 8600 | -8/Materials | Repaired Exp. Sensor Array 9361 | -8/Materials | Discovered new exit (range 8) 9445 | -8/Materials | Destroyed 8 combat bots 9486 | -8/Materials | Build established: Tank 9895 | -8/Materials | Repaired Adv. Treads+ 10027 | -8/Materials | Identified exit to Factory 10089 | -8/Materials | Entered Factory 10089 | -7/Factory | Evolved 2 slots: Utility x2 10090 | -7/Factory | Identified exit to Lower Caves 10291 | -7/Factory | Discovered new exit (range 15) 10318 | -7/Factory | Identified exit to Factory 10430 | -7/Factory | Build established: Skirmisher 11368 | -7/Factory | Discovered exit to Factory (range 8) 11522 | -7/Factory | Central database locked down 11626 | -7/Factory | Build established: Mutant 12056 | -7/Factory | Discovered exit to Lower Caves (range 5) 12723 | -7/Factory | Build established: Scavenger-Tank 12784 | -7/Factory | Entered Lower Caves 13063 | -7/Lower Caves | Entered an active Warlord outpost 13083 | -7/Lower Caves | Learned Factory emergency access door positions 13083 | -7/Lower Caves | Learned Extension security intel 13083 | -7/Lower Caves | Learned Extension terminal intel 13086 | -7/Lower Caves | A Commander dispatched an escort 13177 | -7/Lower Caves | Build established: Skirmisher 13626 | -7/Lower Caves | Learned Factory stockpile data 13644 | -7/Lower Caves | Discovered new exit (range 2) 13646 | -7/Lower Caves | Identified exit to Lower Caves 13780 | -7/Lower Caves | Entered another Lower Caves area 13780 | -7/Lower Caves | Accompanied by 3 allies 13781 | -7/Lower Caves | Commander's escort returned to base 13781 | -7/Lower Caves | Commander's escort returned to base 13781 | -7/Lower Caves | Commander's escort returned to base 13799 | -7/Lower Caves | Discovered exit to Factory (range 7) 14150 | -7/Lower Caves | Discovered new exit (range 14) 14292 | -7/Lower Caves | Learned location of Zion (-6) 14295 | -7/Lower Caves | Learned Factory emergency access door positions 14456 | -7/Lower Caves | Identified exit to Data Miner 14458 | -7/Lower Caves | Entered Data Miner 14458 | -7/Data Miner | Discovered new exit (range 6) 14465 | -7/Data Miner | Identified exit to Proximity Caves 14489 | -7/Data Miner | Met Data Miner 14528 | -7/Data Miner | Learned location of Section 7 (-2) 14528 | -7/Data Miner | Acquired the access code to Warlord's prototype stash 14555 | -7/Data Miner | Received God Mode back door access code from Data Miner 14602 | -7/Data Miner | Entered Proximity Caves 14605 | -6/Proximity Caves | Spotter reported a threat 14637 | -6/Proximity Caves | Learned Factory garrison access intel 15480 | -6/Proximity Caves | Learned Factory trap positions 15518 | -6/Proximity Caves | Attracted the attention of an 0b10 checkpoint 16098 | -6/Proximity Caves | Received a Behemoth hack from an annoying Tinkerer 16578 | -6/Proximity Caves | Discovered exit to Factory (range 10) 16749 | -6/Proximity Caves | Entered Factory 16749 | -6/Factory | Evolved 2 slots: Power x1, Propulsion x1 16750 | -6/Factory | Loaded intel: 112 trap records 16753 | -6/Factory | Loaded intel: 4 garrison access locations 17343 | -6/Factory | Incoming investigation squad redirected 17441 | -6/Factory | Discovered new exit (range 6) 17447 | -6/Factory | Identified exit to Extension 17533 | -6/Factory | Lost 4 parts (1p1u2w) 17722 | -6/Factory | Cargo convoy interrupted 17757 | -6/Factory | Destroyed 10 combat bots 18057 | -6/Factory | Entered Extension 18059 | -6/Extension | Loaded intel: 14 terminal locations 18397 | -6/Extension | Rescued a captive Derelict 18398 | -6/Extension | Rescued a captive Derelict 18631 | -6/Extension | Build established: Scavenger-Gunner 18931 | -6/Extension | Build established: Commander-Gunner 19157 | -6/Extension | Disrupted transfer network 19171 | -6/Extension | Spotted B-75 Beast 19193 | -6/Extension | Destroyed B-75 Beast 19198 | -6/Extension | Spotted B-75 Beast 19214 | -6/Extension | Destroyed B-75 Beast 19245 | -6/Extension | Lost 12 allies 19284 | -6/Extension | Destroyed 10 combat bots 19377 | -6/Extension | Rescued a captive Derelict 19444 | -6/Extension | Rescued A7 19470 | -6/Extension | Rescued a captive Derelict 19471 | -6/Extension | Rescued a captive Derelict 19493 | -6/Extension | Build established: Scavenger-Gunner 19756 | -6/Extension | Discovered new exit (range 10) 19758 | -6/Extension | Discovered new exit (range 6) 19766 | -6/Extension | Identified exit to Cetus 19777 | -6/Extension | Identified exit to Factory 19793 | -6/Extension | Entered Cetus 19793 | -6/Cetus | Accompanied by 8 allies (A7) 19798 | -6/Cetus | Acquired a Cetus Manufacturing Module code from A7 19834 | -6/Cetus | Spotted Cetus Guard 19834 | -6/Cetus | Spotted Cetus Guard 19838 | -6/Cetus | Spotted Cetus Guard 19845 | -6/Cetus | Allies destroyed Cetus Guard 19846 | -6/Cetus | Spotted Cetus Guard 19847 | -6/Cetus | Destroyed Cetus Guard 19854 | -6/Cetus | Allies destroyed Cetus Guard 19869 | -6/Cetus | Allies destroyed Cetus Guard 19899 | -6/Cetus | Lost 3 allies 20052 | -6/Cetus | Started Cetus Manufacturing Module 20068 | -6/Cetus | Escorted A7 to Cetus Mainframe 20077 | -6/Cetus | Manufactured an Enhanced Grunt 20098 | -6/Cetus | Build established: Scavenger-Tank 20102 | -6/Cetus | Manufactured an Enhanced Grunt 20127 | -6/Cetus | Manufactured an Enhanced Grunt 20152 | -6/Cetus | Manufactured an Enhanced Grunt 20177 | -6/Cetus | Manufactured an Enhanced Grunt 20185 | -6/Cetus | Discovered new exit (range 16) 20233 | -6/Cetus | Spotted Cetus Guard 20233 | -6/Cetus | Spotted Cetus Guard 20245 | -6/Cetus | Spotted Cetus Guard 20250 | -6/Cetus | Allies destroyed Cetus Guard 20252 | -6/Cetus | Allies destroyed Cetus Guard 20254 | -6/Cetus | Spotted Cetus Guard 20255 | -6/Cetus | Allies destroyed Cetus Guard 20275 | -6/Cetus | Discovered exit to Factory (range 16) 20288 | -6/Cetus | Met Revision 17 20394 | -6/Cetus | Identified exit to Archives 20543 | -6/Cetus | Security sweep announced 20560 | -6/Cetus | Allies destroyed A7 20565 | -6/Cetus | Extracted ID and sensor layout for unrecognized location from A7's data core 20569 | -6/Cetus | Found Prototype Protection 20569 | -6/Cetus | Identified Med. Regenerative Plating 20594 | -6/Cetus | Build established: Commander-Gunner 20612 | -6/Cetus | Entered Archives 20612 | -6/Archives | Accompanied by 8 allies 20639 | -6/Archives | Met Zhirov 20645 | -6/Archives | Reinforcements dispatched to Archives 20651 | -6/Archives | Discovered new exit (range 16) 20680 | -6/Archives | Identified exit to Hub_04(d) 20686 | -6/Archives | Entered Hub_04(d) 20686 | -6/Hub_04(d) | Accompanied by 6 allies 20877 | -6/Hub_04(d) | Discovered exit to Factory (range 10) 20939 | -6/Hub_04(d) | Lost 6 allies 21000 | -6/Hub_04(d) | Found Prototype Device 21000 | -6/Hub_04(d) | Identified Exp. Thermal Shield 21152 | -6/Hub_04(d) | System corruption reached 10% 21166 | -6/Hub_04(d) | Entered Factory 21166 | -5/Factory | Evolved 2 slots: Utility x2 21191 | -5/Factory | Build established: Scavenger-Gunner 21206 | -5/Factory | Discovered new exit (range 15) 21258 | -5/Factory | Identified exit to Upper Caves 21915 | -5/Factory | Entered Upper Caves 22138 | -5/Upper Caves | Learned location of Warlord (-4) 22444 | -5/Upper Caves | Attracted the attention of an 0b10 checkpoint 22592 | -5/Upper Caves | Encountered a Warlord checkpoint 22688 | -5/Upper Caves | Discovered new exit (range 10) 22699 | -5/Upper Caves | Identified exit to Upper Caves 22722 | -5/Upper Caves | Build established: Scavenger-Tank 22755 | -5/Upper Caves | Entered another Upper Caves area 22916 | -5/Upper Caves | Discovered new exit (range 5) 22923 | -5/Upper Caves | Identified exit to Factory 23122 | -5/Upper Caves | Entered an active Warlord outpost 23146 | -5/Upper Caves | Learned Extension trap positions 23146 | -5/Upper Caves | Learned Factory garrison access intel 23200 | -5/Upper Caves | Encountered a Warlord checkpoint 23459 | -5/Upper Caves | Learned Factory stockpile data 23833 | -5/Upper Caves | Discovered new exit (range 12) 23848 | -5/Upper Caves | Identified exit to Zhirov 24019 | -5/Upper Caves | Entered Zhirov 24019 | -5/Zhirov | Discovered new exit (range 3) 24023 | -5/Zhirov | Identified exit to Proximity Caves 24088 | -5/Zhirov | Learned location of Quarantine (-2) 24088 | -5/Zhirov | Learned location of Testing (-3) 24088 | -5/Zhirov | Learned location of Command (-1) 24148 | -5/Zhirov | Found Alien Artifact 24148 | -5/Zhirov | Identified Integrated Dissipator 24148 | -5/Zhirov | Installed Integrated Dissipator, increased core heat dissipation (+20) 24230 | -5/Zhirov | Found Alien Artifact 24351 | -5/Zhirov | Entered Proximity Caves 25461 | -4/Proximity Caves | Learned 8 Research zone layouts 25558 | -4/Proximity Caves | Discovered exit to Factory (range 14) 25621 | -4/Proximity Caves | Entered Factory 25621 | -4/Factory | Evolved 2 slots: Utility x2 25622 | -4/Factory | Identified exit to Research 25622 | -4/Factory | Identified exit to Armory 25624 | -4/Factory | Loaded intel: 4 garrison access locations 25795 | -4/Factory | Identified exit to Upper Caves 26027 | -4/Factory | Repaired Centrium Heavy Treads 26203 | -4/Factory | Spotted B-86 Titan 26304 | -4/Factory | Sucked down chute 26304 | -4/Factory | Entered Waste 26305 | -4/Waste | Joined by Warlord forces that had cleared the area 26519 | -4/Waste | Discovered new exit (range 10) 26532 | -4/Waste | Identified exit to Factory 26553 | -4/Waste | Build established: Scavenger-Mutant 26562 | -4/Waste | Entered Factory 26562 | -4/Factory | Accompanied by 20 allies 26697 | -4/Factory | Lost 3 allies 26755 | -4/Factory | Lost 3 allies 26887 | -4/Factory | Build established: Scavenger-Tank 27064 | -4/Factory | P-70 Sage assimilated allied 1D-DYV(g) 27128 | -4/Factory | Lost 5 allies 27269 | -4/Factory | Repaired Adv. KE Penetrator 27544 | -4/Factory | Lost 4 allies 27604 | -4/Factory | Repaired Adv. Shield Generator 27734 | -4/Factory | Cargo convoy interrupted 27929 | -4/Factory | System corruption reached 10% 28069 | -4/Factory | Build established: Hacker-Tank 28168 | -4/Factory | Found Exp. Signal Interpreter 28794 | -4/Factory | Entered Upper Caves 29079 | -4/Upper Caves | Build established: Hacker-Skirmisher 29509 | -4/Upper Caves | Attracted the attention of an 0b10 checkpoint 32296 | -4/Upper Caves | Identified exit to Upper Caves 32457 | -4/Upper Caves | Entered another Upper Caves area 32462 | -4/Upper Caves | Discovered exit to Research (range 12) 32608 | -4/Upper Caves | Learned Research non-interactive machine intel 34140 | -4/Upper Caves | Attracted the attention of an 0b10 checkpoint 34744 | -4/Upper Caves | Discovered new exit (range 2) 34744 | -4/Upper Caves | Identified exit to Warlord 34784 | -4/Upper Caves | Entered Warlord 34826 | -4/Warlord | Discovered new exit (range 12) 35100 | -4/Warlord | Visited the Vortex Lab 35113 | -4/Warlord | Warlord's base attacked by MAIN.C 35113 | -4/Warlord | Found Prototype Energy Gun 35113 | -4/Warlord | Identified Vortex Rail 35209 | -4/Warlord | Opened Warlord's prototype stash 35215 | -4/Warlord | Found Prototype Reactor 35215 | -4/Warlord | Identified Vortex Chain Reactor 35224 | -4/Warlord | Found Prototype Device 35224 | -4/Warlord | Identified System Purifier 35228 | -4/Warlord | Found Prototype Processor 35228 | -4/Warlord | Identified Spectral Analyzer 35354 | -4/Warlord | Met Warlord 35463 | -4/Warlord | Warlord forces counterattacked 35583 | -4/Warlord | Spotted Striker 35584 | -4/Warlord | Spotted B-86 Titan 35591 | -4/Warlord | Spotted Striker 35630 | -4/Warlord | Lost 13 allies 35688 | -4/Warlord | Spotted Striker 35701 | -4/Warlord | Destroyed Striker 35743 | -4/Warlord | Lost 6 allies 35764 | -4/Warlord | Destroyed 8 combat bots 35788 | -4/Warlord | Warlord base infiltrated, sounded retreat 35801 | -4/Warlord | Spotted Executioner 35835 | -4/Warlord | Lost 4 allies 35881 | -4/Warlord | Spotted Striker 35965 | -4/Warlord | Spotted Striker 35980 | -4/Warlord | Build established: Hacker-Tank 35983 | -4/Warlord | Spotted Striker 35997 | -4/Warlord | Destroyed Striker 36038 | -4/Warlord | Identified exit to Proximity Caves 36042 | -4/Warlord | Entered Proximity Caves 36042 | -3/Proximity Caves | Accompanied by 3 allies 36056 | -3/Proximity Caves | Lost 4 allies 36349 | -3/Proximity Caves | Build established: Hacker-Skirmisher 37620 | -3/Proximity Caves | Attracted the attention of an 0b10 checkpoint 38927 | -3/Proximity Caves | Discovered exit to Research (range 8) 39172 | -3/Proximity Caves | Entered Research 39172 | -3/Research | Accompanied by 3 allies 39172 | -3/Research | Evolved 2 slots: Power x1, Utility x1 39172 | -3/Research | Garrison activated, responded to threat 39174 | -3/Research | Loaded intel: 67 non-interactive machine locations 39372 | -3/Research | Revision forces began assault on 0b10 39401 | -3/Research | Met up with Revision 17++ 39636 | -3/Research | Build established: Scavenger-Skirmisher 39703 | -3/Research | Repaired Bore Cannon 39872 | -3/Research | Research terminal network offline 40087 | -3/Research | Build established: Hacker-Skirmisher 40226 | -3/Research | Discovered new exit (range 19) 40255 | -3/Research | Identified exit to Research 40297 | -3/Research | Central database locked down 40453 | -3/Research | Fabricated Coil Gun (x2) 40775 | -3/Research | Entered another Research area 40775 | -2/Research | Warlord forces began assault on 0b10 40775 | -2/Research | Evolved 2 slots: Propulsion x1, Weapon x1 40885 | -2/Research | Research machine network offline 40922 | -2/Research | Destroyed JU-X91(K) 40964 | -2/Research | Lost 5 allies 41053 | -2/Research | Discovered new exit (range 14) 41092 | -2/Research | Identified exit to Access 41233 | -2/Research | Found Prototype Launcher 41233 | -2/Research | Identified Tesla Bomb Launcher 41313 | -2/Research | Borebot progress halted 41408 | -2/Research | Discovered new exit (range 14) 41412 | -2/Research | Borebot progress halted 41433 | -2/Research | Identified exit to Quarantine 41490 | -2/Research | Borebot progress halted 41751 | -2/Research | Met up with Warlord 42009 | -2/Research | Warlord destroyed during the assault 42096 | -2/Research | Entered Access 42096 | -1/Access | Evolved 2 slots: Utility x1, Weapon x1 42314 | -1/Access | Identified exit to Command 42566 | -1/Access | Discovered new exit (range 18) 42672 | -1/Access | Identified exit to Surface 42857 | -1/Access | System corruption reached 10% 42966 | -1/Access | Build established: Scavenger-Gunner 43024 | -1/Access | Spotted B-99 Colossus 43026 | -1/Access | Befriended a Behemoth using the annoying Tinkerer's hack 43027 | -1/Access | Spotted B-99 Colossus 43041 | -1/Access | Destroyed B-99 Colossus 43191 | -1/Access | Garrison activated, responded to threat 43733 | -1/Access | Destroyed B-99 Colossus 44096 | -1/Access | First assault squad dispatched 44307 | -1/Access | Unchained authorized (QV-33N) 44871 | -1/Access | Incoming assault squad redirected 45361 | -1/Access | Incoming assault squad redirected 45369 | -1/Access | Incoming assault squad redirected 45640 | -1/Access | Lost 3 parts (1p2w) 46114 | -1/Access | Incoming assault squad redirected 46365 | -1/Access | Incoming assault squad redirected 46409 | -1/Access | Lost 6 parts (1p2n3w) 46620 | -1/Access | Incoming assault squad redirected 46736 | -1/Access | Lost 3 parts (1p1u1w) 46787 | -1/Access | System corruption reached 30% 46797 | *** | Escaped! Last Messages --------------- 46756_ K-01 Serf collects debris. 46763_ Acquired 84 matter. 46763_ Acquired 78 matter. 46764_ K-01 Serf collects debris. 46771_ Acquired 58 matter. 46772_ K-01 Serf collects debris. 46773_ System corrupted: Matter fused (-8). 46776_ K-01 Serf collects debris. 46786_ Integrated Corrupted Rnf. Quantum Reactor (+9). 46788_ K-01 Serf collects debris. 46790_ System corrupted: Energy discharge (-64). 46790_ Integrated Corrupted Arm. Heavy Treads (+2). 46792_ K-01 Serf collects debris. 46794_ Discarded Core Analyzer. 46796_ K-01 Serf collects debris. [Achievement: 40k Club] [Achievement: Tester] [Achievement: Punisher] Map ----- +----------------------------------------------------+ | ?????????????????+ #????????????????????????????? | | ?????????????????# #????????????????????????????? | | ?????????????????# #????????????????????????????? | | ??????????#+##???# #????????????????????????????? | | ########### #???# #????????????????????????????? | | "" # #???# #????????????????????????????? | | "" # #???# #????????????????????????????? | | """""" # #???# ##################???????????? | | """""" # #???# # #???????????? | | "" # #???# # = #???######### | | "" ^# ##### # #???# | | + # #???# | | # + #???# """ | | #% ######## #???# """ | | *#!%#??????# ! = #???# ""] | | =[#[ #??????# ! =##### ]= | | !!!#!*####???# ! # " | | ###########! #!# ##?###################### | | ?????# !=!#=!#= # ####??????????#?###??### | | ??????#[! #!!##;;### ###########?######### | | ???#??#*=]"! *!|= """" # | | ??????# [*#== ! k """" # = | | ?????## #!=[* !! """" ####"+### | | ????## ;! [ [!= """" | | ???### #=[ = | "" """" | | ?#???### # ===== @"!= """" | | ???#?????#;*[=! ! """" | | ???###??# #[ =!!* ""?" ####"""## | | ?#?##???#!#!|!!= """" #?### | | ??#?????%##!= =[! """" ##### | | #?#???#=!!!!|####### ######################### | | ?##?#? !=#![#??#! ####?####?#############?### | | #?### # =#[=#### # ##?##?####?############## | | #####?### #!*#########?##################?#### | | ?##########==#####?##?######################## | | ####?######!!#######?#?########################### | | ?#?##?#?### =# ##?##??############### | | ?#??##??###!!############## ! | | #????##??## |## # # %%= | | ?#????##??# ## ### =![ | | ?####?#??## ## + *! | | ?##########*%## * = ## ! | | ?#??#?#???#= ## ## ######### | | ###?#####?# ## = ==! ## #####?########## | | ####?#??#?# ## =!! ## #####?########?# | | ???###??### ## =!! ## ################ | | ###????### !! ###+######## #?###########?## | | ????###?## #???############ | | #####???## #??############# | | ####?###?# ##### ###+####?##?#####?##### | +----------------------------------------------------+ Best States ------------- Heat Dissipation 110 Energy Generation 73 Energy Capacity 925 Matter Stores 300 Matter Capacity 800 Sight Range 24 Robot Scan Range 20 Terrain Scan Range 20 Terrain Scan Density 210 Jamming Range 16 Additional Mass Support 9 Armor Coverage 600 Core Shielding 30 Utility Shielding 66 Weapon Cycling 25 Evasion (%) 45 Targeting Accuracy 16 Core Analysis 6 Armor Integrity Analysis 40 Recoil Reduction 5 Offensive Hacking 28 Defensive Hacking 14 Trap Extractor Capacity 4 Item Schematics ----------------- Hrd. Heavy Armor Plating | -8/Materials | Scanalyzed Arm. Treads | -7/Factory | Scanalyzed Hvy. Rocket Launcher | -7/Factory | Scanalyzed Combat Drone Bay | -7/Data Miner | Free Lgt. Regenerative Plating | -7/Data Miner | Free Cld. Cesium-ion Thruster | -7/Data Miner | Free Exp. Utility Shielding | -7/Data Miner | Free Antimatter Cannon | -7/Data Miner | Free Nuclear Pulse Array | -7/Data Miner | Free Adv. System Shield | -7/Data Miner | Free Hardcell Cannon | -7/Data Miner | Free Lrn. Proton Cannon | -7/Data Miner | Free Adv. Plasma Cannon | -7/Data Miner | Free Adv. Transmission Jammer | -6/Extension | Hacked Coil Gun | -6/Extension | Hacked Assault Drone Bay | -5/Zhirov | Free Exp. Heat Sink | -5/Zhirov | Free Exp. Optical Array | -5/Zhirov | Free Imp. Arc Thrower | -5/Zhirov | Free Robot Schematics ------------------ B-48 Gladiator | -7/Data Miner | Free G-47 Trooper | -7/Data Miner | Free M-28 Smith | -7/Data Miner | Free S-27 Virus | -7/Data Miner | Free L-41 Fighter | -7/Data Miner | Free Fabricated ------------ Coil Gun | x2 | -3/Research Repaired ---------- Lgt. Treads | 45% | -10/Materials Lgt. Treads | 30% | -9/Materials Hcp. Storage Unit | 96% | -9/Materials Exp. Sensor Array | 62% | -8/Materials Adv. Treads | 17% | -8/Materials Centrium Heavy Treads | 38% | -4/Factory Adv. KE Penetrator | 56% | -4/Factory Adv. Shield Generator | 34% | -4/Factory Bore Cannon | 20% | -3/Research Studied --------- Arm. Treads | -8/Materials | Hacked Adv. Treads | -8/Materials | Hacked Lgt. Treads | -8/Materials | Hacked Imp. Treads | -8/Materials | Hacked Hvy. Particle Cannon | -8/Materials | Hacked Gauss Rifle | -7/Factory | Hacked Railgun | -3/Research | Hacked KE Penetrator | -3/Research | Hacked Com. HERF Cannon | -3/Research | Hacked Alien Tech Used ----------------- Integrated Dissipator Achievements -------------- 40k Club Botjacking Can't Touch This Collateral Damage Punisher Revolutionary Research Tank Life Tester Woof! Challenges ------------ None Game ------ Seed ThermicRecoilFlail Manual? 0 Play Time 06:53:10 Cumulative 89.6 hours Start 2026.01.27 @ 14:30:47 End 2026.02.03 @ 02:41:40 Sessions 21 Manual Loads 0 Difficulty Rogue Special Mode None Game No. 84 Rogue 84 Adventurer 0 Explorer 0 Win Type 0 Total 12 Types 10/0/1/1/0/0/0/0/0/0 Lore% 48 Gallery% 50 Achievement% 45 Wizard Run 0 Options --------- Layout 2 ASCII 0 Keyboard 1 Movement Numpad Keybinds 0 Fullscreen 2 Font 24/Terminus Map View 50x44 Zoom Use 0% Tactical HUD 1 Map Filters NONE Filters NONE Steam 1 RUN: 1613014b-0ba9-4869-bf96-197ec8d06519